Cogmind - Beta 11.1 @@@ ROGUE MODE // 2022.12.24 @ 11:57:00 Player: ktur Result: Self-destructed Performance ------------- Evolutions (9) 4500 Regions Visited (36) 7200 Robots Destroyed (493) 2465 Value Destroyed (21071) 21071 Prototype IDs (125) 2500 Alien Tech Used (7) 1400 Bonus (13013) 13013 TOTAL SCORE: 52149 Bonus ------- High Alert Combat Kills 3040 Follower Combat Kills 3667 Network Hubs Disabled 400 Met Data Miner 300 Met Zhirov 300 Met Warlord at Base 500 MAIN.C Attacked Warlord 500 Met R17 at Cetus 500 Found Hidden Lab 3000 Met Warlord at Research 2000 Scanned by Researcher 500 Pursued by Intercept 1000 Friendly Fire -2694 Cogmind --------- Core Integrity 626/1600 Matter 300/300 Energy 1200/1200 System Corruption 9% Temperature Cool (0) Movement Core (50) Location -1/Access Parts ------- > --- POWER (3) -------- Backup Power VII Backup Power VII > --- PROPULSION (8) --- Backup Propulsion VII Backup Propulsion VII > --- UTILITY (12) ----- Advanced Energy Well Experimental Energy Well Advanced Terrain Scan Processor Experimental Targeting Computer Improved Armor Integrity Analyzer > --- WEAPON (3) ------- (None) > --- INVENTORY (7) ---- Experimental Matter Compressor (134) Long-range Sensor Array Experimental Transmission Jammer Layered Medium Armor Plating Integrity Redistributor EMDS Peak State ------------ > --- POWER ------------ Micro Antimatter Reactor Micro Antimatter Reactor > --- PROPULSION ------- Cooled Linear Gravjet Combat Linear Gravjet Combat Linear Gravjet Combat Linear Gravjet Combat Linear Gravjet Combat Linear Gravjet Combat Linear Gravjet > --- UTILITY ---------- Advanced Cooling System High-capacity Storage Unit Spectral Analyzer Advanced Terrain Scan Processor Experimental Transmission Jammer Experimental Utility Shielding Experimental Weapon Shielding Heavy Regenerative Plating Advanced Hacking Suite Advanced Hacking Suite Quantum Router > --- WEAPON ----------- Null Cannon Disintegrator > --- INVENTORY -------- Light Quantum Reactor Combat Linear Gravjet Advanced Coolant Injector Advanced Energy Well Experimental Energy Well Compact Matter Pod Advanced Quantum Shading Machine Long-range Terrain Scanner Quantum Capacitor Experimental Phase Shifter Experimental EM Disruption Field Authchip [Device] Transdimensional Reconstructor Vortex Driver Potential Cannon Warp Cannon [Rating: 214] Favorites ----------- Power Quantum Reactor Engine Cooled Ion Engine Power Core Micro Fission Core Reactor Quantum Reactor Propulsion Combat Linear Gravjet Treads Centrium Heavy Treads Wheel Compact Wheel Hover Unit Combat Linear Gravjet Flight Unit Cooled VTOL Module Utility Advanced Hacking Suite Device Experimental Sensor Array Storage Huge Storage Unit Processor Advanced Signal Interpreter Hackware Advanced Hacking Suite Protection Experimental Utility Shielding Weapon Powered Hammer Energy Gun Advanced Variable Charge Gun Energy Cannon Matter Neutralizer Ballistic Gun Advanced KE Penetrator Ballistic Cannon Mini Assault Cannon Launcher Scatter Rocket Array Special Weapon Improved Plasma Cutter Impact Weapon Powered Hammer Piercing Weapon Force Lance Special Melee Weapon Improved Datajack Build | -11 -10 -10 -9 -9 -8 -7 -7 -7 -7 -7 -7 -6 -6 -6 -6 -6 -6 -5 -5 -5 -5 -4 -4 -4 -4 -4 -4 -4 -3 -3 -3 -3 -2 -2 -2 -1 ------- Run | Scr Mat Min Mat Sto Mat Fac Was Fac Low Low Dat Pro Fac Ext Cet Arc Hub Fac Upp Upp Zhi Pro Fac Was Fac Upp Upp War Pro Res Arm Lab Res Tes Sec Acc Slots Evolved 18 | . . . 2 . 2 2 . . . . . . 2 . . . . 2 . . . . 2 . . . . . . 2 . . 2 . . 2 Power 2 | . . . . . . . . . . . . . . . . . . 1 . . . . . . . . . . . . . . . . . 1 Propulsion 6 | . . . . . 1 1 . . . . . . 2 . . . . . . . . . . . . . . . . . . . 1 . . 1 Utility 10 | . . . 2 . 1 1 . . . . . . . . . . . 1 . . . . 2 . . . . . . 2 . . 1 . . . Weapon . | . . . . . . . . . . . . . . . . . . . . . . . . . . . . . . . . . . . . . Parts Attached 725 | 6 7 8 23 25 21 40 3 19 10 4 2 11 50 3 21 12 20 63 12 3 9 23 29 7 60 2 5 10 39 59 16 9 9 33 40 12 Power 32 | 1 1 . 2 2 1 3 1 1 . . . . 1 . 3 . 1 4 . . . . . . 4 . . . . 1 . . 3 2 1 . Engine 10 | 1 1 . 2 2 1 3 . . . . . . . . . . . . . . . . . . . . . . . . . . . . . . Core 8 | . . . . . . . 1 1 . . . . 1 . . . . . . . . . . . 4 . . . . . . . 1 . . . Reactor 14 | . . . . . . . . . . . . . . . 3 . 1 4 . . . . . . . . . . . 1 . . 2 2 1 . Propulsion 103 | 2 2 2 6 6 7 13 . 2 4 1 . . 11 . 3 2 . 6 . . 1 . . . 13 . . 1 . 10 3 . 1 5 1 1 Treads 33 | 2 1 2 3 6 7 . . . . . . . . . 3 2 . 6 . . 1 . . . . . . . . . . . . . . . Leg . | . . . . . . . . . . . . . . . . . . . . . . . . . . . . . . . . . . . . . Wheel 7 | . 1 . . . . . . . 3 1 . . 2 . . . . . . . . . . . . . . . . . . . . . . . Hover 50 | . . . 2 . . 4 . 2 1 . . . 9 . . . . . . . . . . . 10 . . 1 . 10 3 . 1 5 1 1 Flight 13 | . . . 1 . . 9 . . . . . . . . . . . . . . . . . . 3 . . . . . . . . . . . Utility 334 | 1 1 1 7 3 8 13 2 15 1 3 1 7 24 3 8 5 13 24 9 2 5 14 18 5 30 2 3 4 20 24 5 6 5 14 19 9 Device 213 | . . . 1 1 3 6 2 12 1 1 . 5 19 1 2 5 6 19 9 2 4 14 14 5 14 1 2 3 11 12 3 4 3 9 15 4 Storage 18 | 1 1 1 2 . . 1 . . . . 1 1 1 1 1 . . 1 . . . . . . 3 . . . . 1 . . . . . 2 Processor 17 | . . . 1 . . 1 . . . . . . 2 1 1 . 2 2 . . . . . . 2 . . . . 1 . 1 . . 1 2 Hackware 23 | . . . . . 2 1 . . . . . . 2 . . . 3 1 . . . . 2 . 9 . . . . 2 . 1 . . . . Protection 63 | . . . 3 2 3 4 . 3 . 2 . 1 . . 4 . 2 1 . . 1 . 2 . 2 1 1 1 9 8 2 . 2 5 3 1 Artifact . | . . . . . . . . . . . . . . . . . . . . . . . . . . . . . . . . . . . . . Weapon 256 | 2 3 5 8 14 5 11 . 1 5 . 1 4 14 . 7 5 6 29 3 1 3 9 11 2 13 . 2 5 19 24 8 3 . 12 19 2 Energy Gun 14 | . . . 2 . . . . . . . . . . . 4 1 . 4 . . 1 . . 2 . . . . . . . . . . . . Energy Cannon 69 | . . 1 . 1 . . . . . . . . . . . . . 3 . . . . 3 . 5 . . 2 11 12 4 2 . 12 12 1 Ballistic Gun 52 | 2 2 3 4 9 2 . . . . . . . . . 2 2 3 9 1 . . 1 2 . 1 . 1 1 . . . . . . 7 . Ballistic Cannon 38 | . 1 1 . . 1 4 . . 2 . 1 1 6 . . . . 2 2 . 1 4 3 . . . . . 1 5 2 1 . . . . Launcher 36 | . . . 2 1 1 2 . 1 . . . 2 3 . . . 1 5 . 1 1 4 1 . 4 . 1 . 4 2 . . . . . . Special Weapon 14 | . . . . . . 2 . . 2 . . . 4 . 1 2 . . . . . . . . 3 . . . . . . . . . . . Impact Weapon 24 | . . . . 3 1 2 . . 1 . . 1 1 . . . 2 5 . . . . 2 . . . . 2 3 1 . . . . . . Slashing Weapon . | . . . . . . . . . . . . . . . . . . . . . . . . . . . . . . . . . . . . . Piercing Weapon 7 | . . . . . . . . . . . . . . . . . . . . . . . . . . . . . . 4 2 . . . . 1 Special Melee Weapon 2 | . . . . . . 1 . . . . . . . . . . . 1 . . . . . . . . . . . . . . . . . . Unidentified Prototypes 33 | . . . 2 3 1 2 . . . . . . . . 8 . 3 1 . . 3 . . . . . . 2 . . . 2 . 2 4 . Corrupted Parts 2 | . . . . . . . . . . . . . . . 2 . . . . . . . . . . . . . . . . . . . . . System Corruption 14 | . . . . . . . . . . . . . . . 14 . . . . . . . . . . . . . . . . . . . . . Parts Lost 60 | . 1 5 . 2 2 . . 3 . . . . 2 . . . 2 3 . . . . 1 7 1 . . . . 6 1 . . . 10 14 Power 7 | . . . . . . . . . . . . . . . . . . 1 . . . . . 1 . . . . . 3 . . . . 2 . Propulsion 16 | . 1 4 . . . . . 2 . . . . 1 . . . 1 . . . . . . . . . . . . 1 . . . . 1 5 Utility 28 | . . . . 2 2 . . 1 . . . . 1 . . . 1 2 . . . . 1 6 . . . . . 1 1 . . . 3 7 Weapon 9 | . . 1 . . . . . . . . . . . . . . . . . . . . . . 1 . . . . 1 . . . . 4 2 Highest Loss Streak 14 | . 1 5 . 1 1 . . 2 . . . . 1 . . . 2 2 . . . . 1 3 1 . . . . 4 1 . . . 5 14 To Critical Strikes . | . . . . . . . . . . . . . . . . . . . . . . . . . . . . . . . . . . . . . Average Slot Usage (%) 87 | . 85 92 91 100 99 98 100 99 94 100 92 99 86 93 78 79 81 72 76 76 64 76 74 70 75 100 100 99 99 94 91 88 96 89 87 46 Engine 2 | . 14 13 9 11 9 6 5 . . . . . . . . . . . . . . . . . . . . . . . . . . . . . Core 2 | . . . . . . . 1 7 7 7 7 7 6 6 2 . . . . . . . . . 6 10 10 10 10 7 . . 1 . . . Reactor 3 | . . . . . . . . . . . . . . . 3 6 6 8 11 11 11 11 10 5 . . . . . . 4 4 6 7 7 . Treads 11 | . 27 24 19 22 27 . . . . . . . . . 10 23 25 16 17 17 17 17 15 15 1 . . . . . . . . . . . Wheel 1 | . . . . . . . . . 9 15 15 15 2 13 2 . . . . . . . . . . . . . . . . . . . . . Hover 10 | . . . . . . 7 23 29 15 15 15 15 29 26 12 1 . . . . . . . . 6 31 31 30 31 27 27 27 28 28 28 12 Flight 1 | . . . . . . 22 7 . . . . . . . . . . . . . . . . . 10 . . . . . . . . . . . Device 8 | . . . 6 11 4 6 7 6 15 7 7 7 10 12 5 6 5 5 11 11 9 11 9 17 10 3 3 5 4 6 12 12 13 9 12 7 Storage 6 | . 14 25 10 11 9 7 7 7 7 7 7 7 1 6 6 6 6 5 5 5 5 5 5 5 1 5 5 5 5 4 4 4 4 4 4 4 Processor 8 | . . . 10 11 9 7 7 7 7 7 7 7 6 12 20 20 14 8 5 5 5 5 5 4 2 5 5 5 5 7 8 4 8 8 8 14 Hackware 10 | . . . . . 4 22 23 19 15 15 15 15 14 . . . 4 14 11 11 11 11 13 11 25 31 31 28 26 23 23 22 14 12 11 2 Protection 4 | . . . 13 11 18 . . 3 . 6 7 6 1 . . . 2 1 . . . . 4 . . 1 1 2 5 6 1 4 6 9 7 . Energy Gun 1 | . . . 2 1 . . . . . . . . . . 6 4 3 . . . . . . 9 1 . . . . . . . . . . . Energy Cannon 1 | . . 7 . 4 . . . . . . . . . . . . . . . . . . . . 3 5 5 4 4 2 . . 8 5 3 . Ballistic Gun 5 | . 21 12 17 16 16 . . . . . . . . . 4 6 6 3 5 4 . 4 4 . . 5 4 . . . . . . . 2 . Ballistic Cannon 2 | . 6 7 . . . 6 7 6 6 7 . 6 5 6 . . . . 4 5 . 4 4 . . . . . . . 2 . . . . . Impact Weapon 1 | . . . . . . 5 7 7 6 7 7 6 5 6 . . 2 2 . . . . . . . . . 4 4 1 . . . . . . Naked Turns . | . . . . . . . . . . . . . . . . . . . . . . . . . . . . . . . . . . . . . Heaviest Build 166 | 13 35 37 103 106 109 23 23 35 25 31 35 39 108 110 124 124 124 142 146 148 145 146 166 146 102 67 69 79 79 85 80 95 114 115 121 59 Greatest Support 230 | 40 40 40 40 40 60 33 24 44 32 32 32 32 53 32 160 206 206 230 230 230 230 230 230 230 230 92 88 93 99 102 102 102 116 116 126 61 Greatest Overweight (x) 40 | . . . 4 2 34 1 . 1 1 . 1 1 3 3 3 40 . . . . . . . 1 2 . . . . . . . 1 . 5 1 Average Overweight (x) . | . . . 1 2 1 . . . . . . . . 3 . 10 . . . . . . . . . . . . . . . . . . . . Largest Inventory Capacity 25 | 8 15 15 25 25 25 25 10 10 10 10 10 10 25 25 25 25 25 25 25 25 25 25 25 25 25 20 20 20 20 20 20 20 20 20 22 22 Average Capacity 19 | 7 10 14 21 25 25 10 10 10 10 10 10 10 6 25 25 25 25 25 25 25 25 25 25 25 9 20 20 20 20 20 20 20 20 20 20 18 Most Carried 25 | 6 15 15 25 25 25 25 10 10 10 10 10 10 15 19 25 25 25 25 25 25 25 25 25 25 25 20 20 20 20 20 20 20 20 20 22 22 Average Carried 18 | 2 10 14 17 24 24 10 9 9 10 9 9 9 5 15 23 24 23 24 24 24 24 25 23 24 8 20 20 19 19 19 18 16 19 19 19 17 Final Capacity 25 | 8 15 5 25 25 25 10 10 10 10 10 10 10 25 25 25 25 25 25 25 25 25 25 25 25 20 20 20 20 20 20 20 20 20 20 22 7 Final Carried 25 | 6 15 5 25 25 25 10 10 10 10 10 10 10 15 19 25 25 25 25 24 25 25 25 25 24 20 20 20 20 20 20 18 20 20 20 17 7 Class Distribution -------------------- 35% | Scavenger-Mutant 22% | Hacker-Mutant 18% | Mutant 11% | Wizard-Mutant 6% | Hacker-Sprinter Dominant Class ---------------- Mutant | -10/Materials Mutant | -10/Mines Mutant | -9/Materials Mutant | -9/Storage Scavenger-Mutant | -8/Materials Hacker-Mutant | -7/Factory Hacker-Mutant | -7/Waste Hacker-Mutant | -7/Factory Hacker-Mutant | -7/Lower Caves Hacker-Mutant | -7/Lower Caves Hacker-Mutant | -7/Data Miner Hacker-Mutant | -6/Proximity Caves Hacker-Mutant | -6/Factory Scavenger-Mutant | -6/Extension Scavenger-Mutant | -6/Cetus Scavenger-Mutant | -6/Archives Scavenger-Mutant | -6/Hub_04(d) Scavenger-Mutant | -5/Factory Scavenger-Mutant | -5/Upper Caves Scavenger-Mutant | -5/Upper Caves Scavenger-Mutant | -5/Zhirov Scavenger-Mutant | -4/Proximity Caves Scavenger-Mutant | -4/Factory Scavenger-Mutant | -4/Waste Wizard-Mutant | -4/Factory Wizard-Mutant | -4/Upper Caves Wizard-Mutant | -4/Upper Caves Wizard-Mutant | -4/Warlord Wizard-Mutant | -3/Proximity Caves Wizard-Mutant | -3/Research Wizard-Scout | -3/Armory Wizard-Mutant | -3/Lab Hacker-Scout | -2/Research Hacker-Sprinter | -2/Testing Hacker-Sprinter | -2/Section 7 Mutant | -1/Access Resources | -11 -10 -10 -9 -9 -8 -7 -7 -7 -7 -7 -7 -6 -6 -6 -6 -6 -6 -5 -5 -5 -5 -4 -4 -4 -4 -4 -4 -4 -3 -3 -3 -3 -2 -2 -2 -1 ----------- Run | Scr Mat Min Mat Sto Mat Fac Was Fac Low Low Dat Pro Fac Ext Cet Arc Hub Fac Upp Upp Zhi Pro Fac Was Fac Upp Upp War Pro Res Arm Lab Res Tes Sec Acc Matter Collected 18280 | 208 263 135 608 543 736 387 443 226 261 94 . 484 1073 337 243 432 371 1964 386 139 . 858 449 . 1051 88 107 278 577 1729 242 . 459 430 2377 302 Remotely . | . . . . . . . . . . . . . . . . . . . . . . . . . . . . . . . . . . . . . Salvage Created 22186 | . 341 92 1019 1194 1229 399 . 631 258 31 . 107 667 10 302 290 614 2428 261 75 . 814 698 533 1347 22 42 . 760 2258 84 . 223 1345 2897 1215 Parts 1055 | . 30 7 77 80 80 16 . 18 4 2 . 8 42 2 23 32 36 111 7 2 . 23 31 7 60 1 7 . 26 87 3 . 5 50 121 57 Haulers Intercepted 20 | . 2 . 2 4 1 2 . . . . . . . . . . . 1 . . . . . . 2 . . . 1 1 . . 1 2 1 . Recyclers Shooed 18 | . 2 . 3 1 . . . . . . . . . . . . . 3 . . . . . . 2 . . . . 7 . . . . . . Parts Field Recycled . | . . . . . . . . . . . . . . . . . . . . . . . . . . . . . . . . . . . . . Retrieved Matter . | . . . . . . . . . . . . . . . . . . . . . . . . . . . . . . . . . . . . . Parts Self-Destructed 79 | . . . . . . . . . . 2 . 6 . . . . . . 25 6 . 21 . . . 1 4 . 14 . . . . . . . Prevented 6 | . . . . . . . . . . . . . . . . . . . . . . . . . . . . . 6 . . . . . . . Kills | -11 -10 -10 -9 -9 -8 -7 -7 -7 -7 -7 -7 -6 -6 -6 -6 -6 -6 -5 -5 -5 -5 -4 -4 -4 -4 -4 -4 -4 -3 -3 -3 -3 -2 -2 -2 -1 ------- Run | Scr Mat Min Mat Sto Mat Fac Was Fac Low Low Dat Pro Fac Ext Cet Arc Hub Fac Upp Upp Zhi Pro Fac Was Fac Upp Upp War Pro Res Arm Lab Res Tes Sec Acc Combat Hostiles Destroyed 326 | . 10 4 18 21 23 5 . 6 . 1 . 4 14 . 5 . 10 41 4 2 . 19 13 2 15 . 4 . 18 23 1 . . 7 43 13 Melee 12 | . . . . . . . . . . . . . . . . . . . . . . . . . . . . . . 6 . . . . . 6 Guns 122 | . 8 1 11 14 23 . . . . . . . . . 5 . 6 19 2 1 . 3 2 2 1 . . . . . . . . . 24 . Cannons 68 | . 2 3 . 7 . 1 . 1 . 1 . 1 10 . . . . 5 2 . . 5 6 . . . . . . 4 1 . . 5 12 2 AOE 101 | . . . 7 . . 4 . 5 . . . 3 3 . . . 4 16 . 1 . 11 4 . 14 . 4 . 13 7 . . . . . 5 Classes Destroyed 24 | . 3 . 7 . 2 1 . . . . . 1 2 . . . . 3 . . . . . 1 . . . . . . . . . 1 3 . Worker 41 | . . . 2 2 . 1 . 1 . . . . 7 . . . 3 5 . . . . 1 . 4 . . . . 7 . . . 4 2 2 Builder 17 | . . . . . . . . . . . . . 2 . . . 2 1 . . . . . . . . . . . 7 . . . 2 . 3 Tunneler 7 | . . . 2 . 1 1 . . . . . . 1 . . . . 1 . . . . . . . . . . . 1 . . . . . . Hauler 20 | . 2 . 2 4 1 2 . . . . . . . . . . . 1 . . . . . . 2 . . . 1 1 . . 1 2 1 . Recycler 34 | . . . 3 1 1 2 . 4 . . . . . . . . . 5 . . . . 1 . 5 . . . . 6 . . 1 2 1 2 Minesweeper 2 | . . . . . . . . . . . . 1 . . . . . . . . . . . . . 1 . . . . . . . . . . Mechanic 5 | . . . . . . . . . . . . . 1 . . . 1 1 . . . . . . . . . . . 2 . . . . . . Operator 17 | . . . 2 1 1 . . 1 . . . . . . . 6 . 1 . . . . . . 3 . . . . . . . 1 1 . . Drone 4 | . . . . . . . . . . . . . . . . . . . . . . . . . . . . . . . . . . . 4 . Watcher 19 | . . . . . 1 2 . 4 . . . . 1 1 . . . 1 . . . . 1 . 3 . . . . 2 . . . 2 1 . Swarmer 87 | . 6 3 3 3 7 4 . . . . . 3 . . 4 . . 12 . 1 . . . . 14 . 4 . 13 10 . . . . . . Cutter 9 | . . . . . . . . . . . . . . . . . . . . . . . . . . . . . . . . . . . 9 . Saboteur 2 | . . . . . . . . . . . . . . . . . . 1 . . . 1 . . . . . . . . . . . . . . Grunt 88 | . 4 . 6 10 6 . . 4 . . . 1 5 . . . 4 7 2 . . 13 6 . . . . . 5 3 . . . 1 4 7 Brawler 6 | . . . 1 . 1 . . . . . . . . . . . . . 1 . . 1 . . . . . . . 1 . . . . . 1 Duelist 3 | . . . 2 . . . . . . . . . . . . . . . . 1 . . . . . . . . . . . . . . . . Protector 1 | . . . . . . . . . . . . . . . . . . 1 . . . . . . . . . . . . . . . . . . Researcher 6 | . . . . . . . . . . . . . . . . . . . . . . . . . . . . . . . . . . 3 3 . Sentry 35 | . . . 6 8 8 . . . . . . . 3 . . . . 1 1 . . 2 1 . . . . . . 4 1 . . . . . Specialist 4 | . . . . . . . . . . . . . . . . . . 4 . . . . . . . . . . . . . . . . . . Hunter 12 | . . . . . 1 . . . . . . . . . . . . 3 . . . . 1 . . . . . . 2 . . . 1 4 . Programmer 51 | . . . . . . 1 . 2 . 1 . . 6 . 1 . 3 12 . . . 2 5 . 1 . . . . 3 . . . 4 5 5 Q-Series 1 | . . . . . . . . . . . . . . . . . . . . . . . . . . . . . . . . . . . 1 . Compactor 2 | . . . . . . . . . . . . . . . . . . . . . . . . 2 . . . . . . . . . . . . Lightning 3 | . . . . . . . . . . . . . . . . . 3 . . . . . . . . . . . . . . . . . . . Tracker 8 | . . . . . . . . . . . . . . . . . . . . . . . . . . . . . . . . . . . 8 . Combat Programmer 8 | . . . . . . . . . . . . . . . . . . . . . . . . . . . . . . . . . . . 8 . Packrat 3 | . . . . . . . . . 3 . . . . . . . . . . . . . . . . . . . . . . . . . . . Butcher 2 | . . . . . . . . . . . . . . . 1 . . . . . . . . . . . . . . . . . . 1 . . Guerrilla 1 | . . . . . . . . . . . . . . . . 1 . . . . . . . . . . . . . . . . . . . . Best Kill Streak 15 | . 5 3 7 6 6 5 . 5 . 1 . 3 8 1 5 2 6 12 2 1 . 7 6 1 8 1 4 . 5 11 1 . 2 5 7 15 Combat Bots Only 12 | . 5 3 5 6 6 4 . 5 . 1 . 3 3 . 5 . 5 11 2 1 . 7 4 1 5 . 4 . 5 5 1 . . 2 7 12 Max Kills in Single Turn 5 | . 2 1 3 2 2 3 . 3 1 1 . 3 4 1 2 1 5 5 1 1 . 3 4 1 5 1 3 . 5 4 1 . 1 2 1 5 Gunslinging 1 | . 1 . . 1 . . . . . . . . . . . . . 1 . . . . . . . . . . . . . . . . . . Exploded 5 | . . . 2 . . 3 . 3 . . . 3 2 . . . 4 5 . 1 . 3 3 . 4 . 3 . 5 2 . . . . . 3 Melee 1 | . . . . . . . . . . . . . . . . . . . . . . . . . . . . . . 1 . . . . . 1 Uniques/NPCs Destroyed 2 | . . 1 . . . . . . . . . . . . 1 . . . . . . . . . . . . . . . . . . . . . YI-UF0 (-10/Mines) A7 (-6/Cetus) Combat | -11 -10 -10 -9 -9 -8 -7 -7 -7 -7 -7 -7 -6 -6 -6 -6 -6 -6 -5 -5 -5 -5 -4 -4 -4 -4 -4 -4 -4 -3 -3 -3 -3 -2 -2 -2 -1 -------- Run | Scr Mat Min Mat Sto Mat Fac Was Fac Low Low Dat Pro Fac Ext Cet Arc Hub Fac Upp Upp Zhi Pro Fac Was Fac Upp Upp War Pro Res Arm Lab Res Tes Sec Acc Damage Taken 25258 | . 341 898 517 724 1334 106 . 467 . 44 . 17 736 . 209 . 1210 2476 36 . . 336 889 1101 766 66 . 14 476 2335 521 . 25 885 6336 2393 Core 4053 | . 19 171 96 76 106 14 . 114 . 11 . . 102 . 51 . 57 254 . . . 19 49 53 249 26 . . 98 426 61 . 24 145 858 974 Absorbed by Shields 2560 | . . . 51 278 201 . . . . . . . . . 63 . . 1022 38 . . 308 545 40 . . . 14 . . . . . . . . Reduced by Siege Mode 458 | . . . . . . . . . . . . . . . . . 68 285 8 . . 53 44 . . . . . . . . . . . . . Redirected to Shielding 927 | . . . . . . . . . . . . . . . . . . . . . . . . . . . . 12 63 213 24 . . 204 411 . Regen/Repaired (Parts) 7121 | . . . . . 11 . . . . . . . 82 . 35 . 132 2481 . . . . . . . . . . . 563 . . . 1296 2521 . Core Remaining (%) 60 | 100 . 24 . 57 80 . . . . . . 80 . . . . 75 . . . . 72 . . . . . . 58 . . 57 . . 2 . Volleys Fired 1527 | . 36 18 59 66 89 22 . 15 14 34 . 18 80 5 35 46 37 129 39 4 . 35 44 42 161 3 2 1 54 93 34 . 1 48 260 3 Largest 2 | . 2 2 2 2 2 1 . 1 1 1 . 1 1 1 2 2 2 2 2 2 . 2 2 2 2 1 1 1 1 1 1 . 1 1 2 1 Hottest 480 | . 46 95 84 123 46 48 . 50 48 48 . 50 50 48 160 70 240 115 83 92 . 92 92 480 240 105 43 105 105 105 70 . 120 130 200 200 Shots Fired 1927 | . 63 35 95 112 177 22 1 16 16 35 . 18 80 6 62 56 66 172 44 8 . 48 62 70 166 3 3 1 54 91 33 . 1 48 260 3 Gun 1016 | . 54 25 89 89 176 . . . . . . . . . 53 37 65 122 6 4 . 13 25 70 25 . . . . . . . . . 163 . Cannon 764 | . 9 10 . 23 . 15 1 14 6 35 . 17 68 6 . . . 41 38 3 . 28 35 . 101 3 1 1 48 79 33 . 1 48 97 3 Launcher 63 | . . . 6 . 1 3 . 2 . . . 1 3 . . . 1 9 . 1 . 7 2 . 7 . 2 . 6 12 . . . . . . Special 84 | . . . . . . 4 . . 10 . . . 9 . 9 19 . . . . . . . . 33 . . . . . . . . . . . Kinetic 1186 | . 63 30 81 78 176 15 1 14 6 35 . 17 68 6 36 37 59 118 44 7 . 41 46 . . . . . . 13 32 . . . 163 . Thermal 535 | . . 5 8 34 . 4 . . 10 . . . 9 . 26 19 6 37 . . . . . 70 159 3 1 1 28 13 . . 1 17 81 3 Explosive 63 | . . . 6 . 1 3 . 2 . . . 1 3 . . . 1 9 . 1 . 7 2 . 7 . 2 . 6 12 . . . . . . Electromagnetic 143 | . . . . . . . . . . . . . . . . . . 8 . . . . 14 . . . . . 20 53 1 . . 31 16 . Robot Hit Streak 42 | . 12 6 20 10 20 14 2 2 3 2 . 4 10 1 9 7 6 24 22 28 . 29 8 16 9 2 . . 11 10 7 . 1 10 42 4 Robot Miss Streak 13 | . 4 2 3 3 2 2 . 3 4 2 . 1 3 1 2 4 3 6 . . . 3 5 3 13 1 . . 1 3 2 . . 2 4 . Penetration Max 1 | . . . . . . . . . . . . . . . 1 1 1 1 . . . 1 1 . . . . . 1 1 . . . 1 1 . Secondary Targets 11 | . 1 . . 4 1 . . . . . . . . . . . 1 4 . . . . . . . . . . . . . . . . . . Max Gunslinging Chain 1 | . 1 . . 1 1 . . . . . . . . . . . 1 1 . . . . . . . . . . . . . . . . . . Capacitor 20 | . . . . . . . . . . . . . . . . . . . . . . . . . . . . . . . . . . . 20 . Shots Hit Robots 1237 | . 43 22 61 76 142 14 1 14 8 2 . 5 49 3 40 33 34 129 21 6 . 30 39 38 66 2 . . 19 65 16 . 3 27 209 20 Core Hits 890 | . 20 7 38 35 55 11 . 24 2 1 . 8 52 1 16 16 61 120 6 4 . 55 45 8 48 2 3 . 30 55 3 . 2 21 121 20 Critical Kills 28 | . . . . . 1 . . . . . . . . . . 2 5 8 . . . . 2 . 2 . . . . 1 1 . . . 6 . Critical Parts Destroyed 43 | . . . . . 1 . . 3 . . . . 1 . 3 2 5 16 . 1 . 3 1 . . . . . . 3 4 . . . . . Critical Strikes 109 | . . . . . 3 . . 3 . 1 . 1 2 . 3 4 10 27 1 1 . 4 5 . 3 . . . 4 12 7 . 2 5 8 3 Meltdown 7 | . . . . . . . . . . . . . . . . . . . . . . . . . 2 . . . . . . . . . 5 . Destroy 62 | . . . . . 3 . . . . . . . . . 3 4 10 22 1 1 . 3 3 . . . . . . 4 7 . . . 1 . Blast 5 | . . . . . . . . . . 1 . 1 1 . . . . 1 . . . 1 . . . . . . . . . . . . . . Corrupt 17 | . . . . . . . . . . . . . . . . . . 2 . . . . 2 . . . . . 4 2 . . . 5 2 . Smash 6 | . . . . . . . . 3 . . . . 1 . . . . 2 . . . . . . . . . . . . . . . . . . Sever 1 | . . . . . . . . . . . . . . . . . . . . . . . . . 1 . . . . . . . . . . . Impale 11 | . . . . . . . . . . . . . . . . . . . . . . . . . . . . . . 6 . . 2 . . 3 Melee Attacks 353 | . . . . 9 2 32 . 34 3 8 . 18 43 1 . . 8 11 . . . . 4 . . . . 13 23 64 10 16 10 14 . 30 Impact 231 | . . . . 9 2 31 . 34 3 8 . 18 43 1 . . 8 11 . . . . 4 . . . . 13 23 23 . . . . . . Slashing . | . . . . . . . . . . . . . . . . . . . . . . . . . . . . . . . . . . . . . Piercing 121 | . . . . . . . . . . . . . . . . . . . . . . . . . . . . . . 41 10 16 10 14 . 30 Sneak Attacks 33 | . . . . . . 5 . 5 1 . . 1 4 . . . 1 3 . . . . . . . . . . . 5 . . 1 3 . 4 Combat Hostiles 1 | . . . . . . . . . . . . . . . . . . . . . . . . . . . . . . . . . . . . 1 Follow-up Attacks . | . . . . . . . . . . . . . . . . . . . . . . . . . . . . . . . . . . . . . Damage Inflicted 58497 | . 604 372 1619 1739 2163 1052 23 1350 175 94 . 314 2804 79 1023 733 1685 7279 522 205 . 2721 2649 1559 3108 70 318 . 2037 5940 251 . 194 2400 10652 2763 Guns 19477 | . 446 281 953 1035 2126 . . . . . . . . . 967 590 791 3152 157 105 . 313 644 1559 497 . . . . . . . . . 5861 . Cannons 16541 | . 94 71 . 612 . 100 23 58 57 94 . 80 1180 79 . . . 1091 365 58 . 494 913 . 1034 70 . . 692 2084 226 . 45 2133 4470 418 Explosions 16421 | . . . 634 . . 455 . 572 . . . 121 1131 . . . 742 2718 . 42 . 1914 1065 . 1228 . 318 . 1244 2598 . . . . 321 1318 Melee 4876 | . . . . . . 474 . 720 64 . . 113 425 . . . 62 226 . . . . . . . . . . 101 1258 25 . 149 267 . 992 Ramming 489 | . 64 20 32 92 37 . . . . . . . . . . . 90 92 . . . . 27 . . . . . . . . . . . . 35 Kinetic 20304 | . 540 297 783 829 2126 100 23 58 57 94 . 80 1180 79 668 590 768 3045 522 163 . 807 1166 . . . . . . 242 226 . . . 5861 . Thermal 12565 | . . 55 228 818 . 23 . . 54 . . . 68 . 355 143 23 809 . . . . . 1559 1880 70 . . . 111 . . 45 685 3903 1736 Explosive 14611 | . . . 576 . . 455 . 572 . . . 121 973 . . . 712 2610 . 42 . 1914 1065 . 1090 . 318 . 1244 2598 . . . . 321 . Electromagnetic 5652 | . . . . . . . . . . . . . 158 . . . 30 497 . . . . 391 . 138 . . . 692 1731 . . . 1448 567 . Impact 2484 | . . . . . . 474 . 720 64 . . 113 425 . . . 62 226 . . . . . . . . . . 101 299 . . . . . . Slashing . | . . . . . . . . . . . . . . . . . . . . . . . . . . . . . . . . . . . . . Piercing 2392 | . . . . . . . . . . . . . . . . . . . . . . . . . . . . . . 959 25 . 149 267 . 992 Highest Corruption 26 | . . . 1 2 . 2 2 3 3 3 3 3 1 1 15 15 11 9 9 4 4 5 3 24 26 22 22 22 . 4 4 4 . 1 16 9 Average Corruption 6 | . . . 1 1 . 1 2 1 3 3 3 3 1 1 7 11 5 5 7 4 4 4 2 11 23 22 22 22 . 2 4 4 . 1 5 5 Corruption Purged 26 | . . . . . . . . 2 . . . . . . . 15 . . 5 . . . . . 4 . . . . . . . . . . . Corruption Blocked 100 | . . . . . . . . . . . . . . . . . . . . . . . . . . . . . . . . . . 60 40 . Effects 551 | . . . 17 30 . 3 4 3 6 9 2 13 8 12 19 11 13 52 28 13 3 24 14 49 126 4 7 . . 17 13 7 . 3 36 5 Message Errors 126 | . . . 3 9 . 1 . 1 . 2 1 1 . 3 3 2 4 13 9 2 . 8 5 9 32 1 . . . . 5 2 . 1 7 2 Matter Fused 121 | . . . 3 9 . 1 1 . 1 1 1 8 2 2 3 4 3 10 5 6 2 4 5 10 23 1 . . . 4 1 . . . 10 1 Heat Flow Errors 73 | . . . 6 2 . . . . . 2 . 4 3 2 5 1 . 4 6 1 . . . 9 17 2 1 . . 2 1 1 . 1 3 . Energy Discharges 70 | . . . 1 1 . . . . . . . . 1 1 2 2 3 9 4 1 . 3 3 10 14 . 3 . . 2 3 3 . 1 3 . Parts Rejected 3 | . . . . . . . . . . . . . . . . . . . . . . 1 . . 2 . . . . . . . . . . . Data Loss (minor) 63 | . . . 2 4 . . 2 1 2 2 . . 2 2 1 . 1 9 2 2 . 3 . 4 11 . 1 . . 5 1 1 . . 3 2 Data Loss (major) 25 | . . . . 1 . . . . 1 . . . . 1 1 . . 3 1 . 1 4 . 1 8 . 1 . . 1 . . . . 1 . Misfires 26 | . . . 2 2 . . 1 1 2 1 . . . 1 2 . . 1 . 1 . . 1 2 6 . 1 . . . . . . . 2 . Alerts 16 | . . . . 2 . 1 . . . 1 . . . . 1 1 2 2 . . . 1 . . 2 . . . . 1 1 . . . 1 . Misdirections 9 | . . . . . . . . . . . . . . . . . . . . . . . . 1 5 . . . . . . . . . 3 . Weapon Failures 19 | . . . . . . . . . . . . . . . 1 1 . 1 1 . . . . 3 6 . . . . 2 1 . . . 3 . Overload Shots 14 | . . . . . . . . . . . . . . . . . 2 . . . . . . 6 6 . . . . . . . . . . . Effects 1 | . . . . . . . . . . . . . . . . . . . . . . . . 1 . . . . . . . . . . . . Short Circuit 1 | . . . . . . . . . . . . . . . . . . . . . . . . 1 . . . . . . . . . . . . Overflow Damage 3467 | . . . 12 20 . 209 . 448 84 . . 10 331 . . . 73 218 . . . 25 48 . 141 . 48 . 114 614 . . 110 310 264 388 Projectiles 1055 | . . . . 16 . . . . 32 . . 10 19 . . . . 57 . . . . 44 . 94 . . . . 171 . . . 223 264 125 Explosions 521 | . . . 12 . . 30 . . . . . . 7 . . . . 14 . . . 25 4 . 47 . 48 . 40 124 . . . . . 170 Melee 1891 | . . . . 4 . 179 . 448 52 . . . 305 . . . 73 147 . . . . . . . . . . 74 319 . . 110 87 . 93 Knockbacks 36 | . 5 . . . . 4 . 1 . 1 . . 5 . . . . 2 1 1 . 1 6 . . . . . . 4 5 . . . . . Impact 9 | . 2 . . . . 2 . 1 . . . . 3 . . . . 1 . . . . . . . . . . . . . . . . . . Kinetic 25 | . 2 . . . . 2 . . . 1 . . 2 . . . . 1 1 1 . 1 6 . . . . . . 3 5 . . . . . Secondary 2 | . 1 . . . . . . . . . . . . . . . . . . . . . . . . . . . . 1 . . . . . . Self-Inflicted Damage 798 | . . . 93 . . . . . . . . . 13 . . . 183 100 . . . 39 . . . . . . 16 89 . . . . 174 91 Shots 18 | . . . 4 . . . . . . . . . 1 . . . 2 4 . . . 2 . . . . . . 1 1 . . . . 2 1 Rammed 45 | . 11 2 3 11 7 . . . . . . . . . . . 2 4 . . . . 2 . . . . . . . . . . . . 3 Targets Rammed 50 | . 11 2 4 12 8 . . . . . . . . . . . 4 4 . . . . 2 . . . . . . . . . . . . 3 Kicked . | . . . . . . . . . . . . . . . . . . . . . . . . . . . . . . . . . . . . . Crushed 5 | . . . 1 1 1 . . . . . . . . . . . 2 . . . . . . . . . . . . . . . . . . . Highest Temperature 372 | . 18 180 238 278 23 6 . 24 . 187 . 230 254 186 246 142 372 291 275 243 . 112 261 321 329 276 182 61 192 324 208 137 300 295 261 188 Average Temperature 68 | . 7 49 57 88 8 3 . 16 . 90 . 91 82 79 81 76 69 85 73 86 . 39 92 105 96 70 32 8 44 71 47 26 84 72 74 99 Received Heat Transfer 2317 | . 138 . 122 232 376 . . 27 . . . . 127 . . . 27 375 12 . . 62 45 . 12 . . . 18 96 9 . . 9 207 423 Effects 7 | . . . . 1 . . . . . . . . . . 1 . . . . . . . . . 4 . . . . 1 . . . . . . Energy Bleed 4 | . . . . 1 . . . . . . . . . . 1 . . . . . . . . . 1 . . . . 1 . . . . . . Interference 3 | . . . . . . . . . . . . . . . . . . . . . . . . . 3 . . . . . . . . . . . Siege Activations 34 | . . . . . . . . . . . . . . . 1 . 3 11 4 1 . 6 7 . 1 . . . . . . . . . . . Total Turns 961 | . . . . . . . . . . . . . . . 8 . 65 350 149 11 . 161 198 . 19 . . . . . . . . . . . Longest Duration 133 | . . . . . . . . . . . . . . . 8 . 44 106 68 11 . 52 133 . 19 . . . . . . . . . . . Robots Corrupted 20 | . . . . . . . . . . . . . . . . . . 1 . . . . 2 . . . . . 6 6 . . . 3 2 . Combat Hostiles 17 | . . . . . . . . . . . . . . . . . . 1 . . . . 1 . . . . . 5 6 . . . 2 2 . Parts Fried 94 | . . . . . . 4 . 13 . . . . 2 . . . 3 8 . . . . 6 . 2 . . . 12 18 . . 2 20 4 . Impact Corruptions 45 | . . . . 1 . 9 . 14 1 . . . 9 . . . 3 3 . . . . . . . . . . 1 4 . . . . . . Robots Melted 7 | . . . . . . . . . . . . . . . . . . . . . . . . . 2 . . . . . . . . . 5 . Combat Hostiles 5 | . . . . . . . . . . . . . . . . . . . . . . . . . . . . . . . . . . . 5 . Parts Melted 18 | . . 1 . 3 . . . . . . . . . . . . . 2 . . . . . . 7 . . . . . . . . . 4 1 Heat Transferred 12788 | . . 111 346 1070 . 74 . . 185 . . . 222 . 645 481 37 964 . . . . . 1519 2320 74 . . . 111 . . 37 311 2371 1910 Parts Sabotaged 1 | . . . . . . . . . . . . . . . . . . 1 . . . . . . . . . . . . . . . . . . Parts Stolen . | . . . . . . . . . . . . . . . . . . . . . . . . . . . . . . . . . . . . . Parts Stripped . | . . . . . . . . . . . . . . . . . . . . . . . . . . . . . . . . . . . . . Power Chain Reactions 1 | . . . . . . . . . . . . . . . . . . 1 . . . . . . . . . . . . . . . . . . Missiles Intercepted . | . . . . . . . . . . . . . . . . . . . . . . . . . . . . . . . . . . . . . Alert | -11 -10 -10 -9 -9 -8 -7 -7 -7 -7 -7 -7 -6 -6 -6 -6 -6 -6 -5 -5 -5 -5 -4 -4 -4 -4 -4 -4 -4 -3 -3 -3 -3 -2 -2 -2 -1 ------- Run | Scr Mat Min Mat Sto Mat Fac Was Fac Low Low Dat Pro Fac Ext Cet Arc Hub Fac Upp Upp Zhi Pro Fac Was Fac Upp Upp War Pro Res Arm Lab Res Tes Sec Acc Peak Influence 1343 | . 137 95 488 332 328 266 32 346 . . . . 295 201 369 345 643 923 . . . . 642 62 375 . . . . 883 234 . 127 285 1157 1343 Initial 693 | . . 25 17 185 37 94 32 22 . . . . 18 97 79 146 . 315 . . . . 125 44 1 . . . . 121 157 . . 71 138 693 Average 220 | . 68 69 362 131 125 123 32 168 . . . . 169 90 238 93 351 554 . . . . 409 12 132 . . . . 256 122 . 57 118 663 924 Maximum Alert Level 4 | . . . 2 1 1 1 . 1 . . . . 1 1 1 1 2 3 . . . . 2 . 1 . . . . 3 1 . . 1 4 4 Low Security (%) 58 | 100 100 100 3 79 70 81 100 60 . . . . 66 84 42 82 14 2 . . . . 14 100 73 . . . . 47 88 . 100 71 9 . Level 1 25 | . . . 57 20 29 18 . 39 . . . . 33 15 57 17 47 30 . . . . 16 . 26 . . . . 39 11 . . 28 20 . Level 2 9 | . . . 39 . . . . . . . . . . . . . 38 25 . . . . 69 . . . . . . 8 . . . . 16 10 Level 3 5 | . . . . . . . . . . . . . . . . . . 42 . . . . . . . . . . . 4 . . . . 49 63 Level 4 . | . . . . . . . . . . . . . . . . . . . . . . . . . . . . . . . . . . . 3 25 Level 5 . | . . . . . . . . . . . . . . . . . . . . . . . . . . . . . . . . . . . . . High Security . | . . . . . . . . . . . . . . . . . . . . . . . . . . . . . . . . . . . . . Max Security . | . . . . . . . . . . . . . . . . . . . . . . . . . . . . . . . . . . . . . Squads Dispatched 132 | . 2 . 2 6 2 6 . 11 . . . . 9 . . . 11 11 . . . 1 9 . 9 . . . . 7 3 . 1 8 25 9 Investigation 31 | . 2 . 1 1 . 2 . 5 . . . . 2 . . . 3 . . . . . 2 . 4 . . . . 3 1 . 1 2 . 2 Extermination 30 | . . . . . . 1 . 1 . . . . 4 . . . 2 4 . . . . 3 . 4 . . . . 2 1 . . 4 3 1 Reinforcement 39 | . . . 1 2 1 3 . 2 . . . . 3 . . . 5 3 . . . . 2 . 1 . . . . 2 1 . . 2 9 2 Assault 9 | . . . . . . . . . . . . . . . . . 1 2 . . . 1 2 . . . . . . . . . . . 2 1 Garrison 9 | . . . . 3 1 . . 3 . . . . . . . . . 2 . . . . . . . . . . . . . . . . . . Intercept 14 | . . . . . . . . . . . . . . . . . . . . . . . . . . . . . . . . . . . 11 3 Searches Triggered . | . . . . . . . . . . . . . . . . . . . . . . . . . . . . . . . . . . . . . Data Miner Redirects 11 | . . . . . . . . . . . . . 1 . . . . . . . . . 2 . 2 . . . . 1 . . . 1 2 2 Construction Impeded 7 | . . . . . . 1 . . . . . . 1 . . . 1 1 . . . . . . . . . . . 1 . . . . 1 1 Haulers Reinforced 3 | . . . . . . . . . . . . . . . . . 1 1 . . . . . . . . . . . . . . . . . 1 Active Scanning Responses . | . . . . . . . . . . . . . . . . . . . . . . . . . . . . . . . . . . . . . Cargo Convoy Interrupts 2 | . . . . . . . . 1 . . . . . . . . . 1 . . . . . . . . . . . . . . . . . . Stealth | -11 -10 -10 -9 -9 -8 -7 -7 -7 -7 -7 -7 -6 -6 -6 -6 -6 -6 -5 -5 -5 -5 -4 -4 -4 -4 -4 -4 -4 -3 -3 -3 -3 -2 -2 -2 -1 --------- Run | Scr Mat Min Mat Sto Mat Fac Was Fac Low Low Dat Pro Fac Ext Cet Arc Hub Fac Upp Upp Zhi Pro Fac Was Fac Upp Upp War Pro Res Arm Lab Res Tes Sec Acc Distress Signals 28 | . 2 . 2 1 2 . . 3 . . . . 1 1 2 . . 1 . . . . . . 3 . . . . 1 . . 2 1 3 3 Communications Jammed 63 | . . . . . . . . . . . . . . . . . . . . . . . . . . . . . . . 40 . . 2 21 . Distress Signals 62 | . . . . . . . . . . . . . . . . . . . . . . . . . . . . . . . 40 . . 2 20 . Times Spotted 700 | . 21 4 31 31 36 16 . 18 . 1 . 6 20 6 12 30 39 54 12 3 . 25 16 13 41 6 3 23 17 39 8 . 3 24 107 35 Peak Tracking Total 20 | . 5 3 6 3 6 5 . 6 . 1 . 3 4 3 5 1 8 12 5 3 . 5 5 5 6 6 4 6 5 5 3 . 1 4 20 19 Tactical Retreats 67 | . . . 5 1 3 . . . . 1 . . 1 . . . 2 1 2 . . 3 1 4 9 3 . 2 1 9 . . . 6 6 7 Traps | -11 -10 -10 -9 -9 -8 -7 -7 -7 -7 -7 -7 -6 -6 -6 -6 -6 -6 -5 -5 -5 -5 -4 -4 -4 -4 -4 -4 -4 -3 -3 -3 -3 -2 -2 -2 -1 ------- Run | Scr Mat Min Mat Sto Mat Fac Was Fac Low Low Dat Pro Fac Ext Cet Arc Hub Fac Upp Upp Zhi Pro Fac Was Fac Upp Upp War Pro Res Arm Lab Res Tes Sec Acc Traps Triggered 21 | . . . 2 5 . 1 . 2 . . . . 1 . . . . 3 . . . . 2 . 3 . . . . 1 . . . . . 1 Indirectly 1 | . . . . . . . . . . . . . . . . . . 1 . . . . . . . . . . . . . . . . . . Trap Hack Attempts . | . . . . . . . . . . . . . . . . . . . . . . . . . . . . . . . . . . . . . Triggered . | . . . . . . . . . . . . . . . . . . . . . . . . . . . . . . . . . . . . . Disarmed 6 | . . . . . . . . . . . . . . . . . . . . . . . . . 6 . . . . . . . . . . . Reprogrammed 14 | . . . 6 . . . . . . . . . . . . . . . . . . . . . . . . . . . . . . 8 . . Reused 5 | . . . 3 . . . . . . . . . 1 . . . . . . . . . . . . . . . . . . . . 1 . . Traps Extracted . | . . . . . . . . . . . . . . . . . . . . . . . . . . . . . . . . . . . . . Installed 3 | . . . . . . . . . . . . 2 1 . . . . . . . . . . . . . . . . . . . . . . . Triggered 16 | . . . 3 . . . . 1 . . . . 1 . . . . . . . . . . . . . . 10 . . . . . 1 . . Most Traps Carried 3 | . . . . . . . . . . . . 3 1 . . . . . . . . . . . . . . . . . . . . . . . Exploded 1 | . . . . . . . . . . . . . . . . . . . . . . . . . 1 . . . . . . . . . . . Machines | -11 -10 -10 -9 -9 -8 -7 -7 -7 -7 -7 -7 -6 -6 -6 -6 -6 -6 -5 -5 -5 -5 -4 -4 -4 -4 -4 -4 -4 -3 -3 -3 -3 -2 -2 -2 -1 ---------- Run | Scr Mat Min Mat Sto Mat Fac Was Fac Low Low Dat Pro Fac Ext Cet Arc Hub Fac Upp Upp Zhi Pro Fac Was Fac Upp Upp War Pro Res Arm Lab Res Tes Sec Acc Machines Disabled 85 | . . . 3 3 . 3 . 1 . . . . 4 3 1 4 20 4 1 . . 1 3 . 12 . . 1 . 1 3 4 . 2 11 . Max in Single Turn 4 | . . . 2 1 . 1 . 1 . . . . 2 . . 1 4 1 1 . . 1 1 . 4 . . . . 1 1 1 . 1 2 . Garrison Access 10 | . . . . 1 . 1 . . . . . . 1 . . . . 1 . . . . 1 . 2 . . . . 1 . . . 1 1 . Network Hub 2 | . . . . . . . . . . . . . . . . . 2 . . . . . . . . . . . . . . . . . . . Machines Sabotaged . | . . . . . . . . . . . . . . . . . . . . . . . . . . . . . . . . . . . . . Garrisons Compromised 1 | . . . . . . . . 1 . . . . . . . . . . . . . . . . . . . . . . . . . . . . Overloaded Fab Kills . | . . . . . . . . . . . . . . . . . . . . . . . . . . . . . . . . . . . . . Hacking | -11 -10 -10 -9 -9 -8 -7 -7 -7 -7 -7 -7 -6 -6 -6 -6 -6 -6 -5 -5 -5 -5 -4 -4 -4 -4 -4 -4 -4 -3 -3 -3 -3 -2 -2 -2 -1 --------- Run | Scr Mat Min Mat Sto Mat Fac Was Fac Low Low Dat Pro Fac Ext Cet Arc Hub Fac Upp Upp Zhi Pro Fac Was Fac Upp Upp War Pro Res Arm Lab Res Tes Sec Acc Machines Accessed 156 | . 9 . 3 10 6 7 . 10 . . 4 . 12 . . . 6 4 . . 4 . 4 . 20 1 . 4 . 14 5 . 1 14 14 4 Terminals 91 | . 7 . 2 8 3 3 . 6 . . . . 5 . . . 6 2 . . . . 2 . 12 . . . . 7 4 . 1 8 13 2 Fabricators 18 | . . . . . . 1 . 4 . . . . 3 . . . . . . . . . . . 4 . . . . 3 1 . . 2 . . Repair Stations 9 | . . . . . 1 1 . . . . . . 1 . . . . 1 . . . . . . . . . . . 2 . . . 2 . 1 Recycling Units 9 | . 2 . 1 1 . . . . . . . . 1 . . . . . . . . . 1 . 2 . . . . . . . . . . 1 Scanalyzers 5 | . . . . . 1 1 . . . . . . 1 . . . . . . . . . . . . . . . . 1 . . . 1 . . Garrison Access 11 | . . . . 1 1 1 . . . . . . 1 . . . . 1 . . . . 1 . 2 . . . . 1 . . . 1 1 . Total Hacks 685 | . 17 . 6 24 16 18 . 32 . . 30 . 34 . . . 20 31 . . 17 . 13 . 115 1 . 13 . 65 30 . 16 94 82 11 Successful 431 | . 10 . 3 13 9 13 . 16 . . 30 . 22 . . . 10 23 . . 17 . 4 . 62 1 . 13 . 53 24 . 9 63 33 3 Failed 253 | . 6 . 3 11 7 5 . 16 . . . . 12 . . . 10 8 . . . . 9 . 53 . . . . 12 6 . 7 31 49 8 Catastrophic 43 | . . . 1 2 . . . 4 . . . . 2 . . . 3 1 . . . . 2 . 8 . . . . 5 . . 1 2 8 4 Database Lockouts 1 | . 1 . . . . . . . . . . . . . . . . . . . . . . . . . . . . . . . . . . . Manual 277 | . 14 . 1 4 2 2 . 11 . . . . 16 . 1 . 11 1 . . . . . . 63 . . 1 . 35 21 . 10 34 50 . Terminals 448 | . 15 . 5 20 8 9 . 22 . . . . 18 . . . 20 8 . . . . 8 . 89 . . . . 42 26 . 16 58 79 5 Fabricators 54 | . . . . . . 2 . 10 . . . . 9 . . . . . . . . . . . 14 . . . . 8 4 . . 7 . . Repair Stations 63 | . . . . . 2 1 . . . . . . 2 . . . . 19 . . . . . . . . . . . 10 . . . 26 . 3 Recycling Units 21 | . 2 . 1 2 . . . . . . . . 3 . . . . . . . . . 2 . 8 . . . . . . . . . . 3 Scanalyzers 14 | . . . . . 3 5 . . . . . . 1 . . . . . . . . . . . . . . . . 4 . . . 1 . . Garrison Access 24 | . . . . 2 3 1 . . . . . . 1 . . . . 4 . . . . 3 . 4 . . . . 1 . . . 2 3 . Terminal Hacks 257 | . 8 . 2 11 5 4 . 6 . . 30 . 7 . . . 10 6 . . 17 . 2 . 36 1 . 13 . 27 14 . 9 23 25 1 Record 16 | . . . . . . . . . . . 11 . . . . . . . . . 5 . . . . . . . . . . . . . . . Part Schematic 28 | . . . . 1 . . . 1 . . 10 . . . . . . . . . 4 . . . 7 . . . . 2 1 . . 2 . . Robot Schematic 6 | . . . . . . . . . . . 6 . . . . . . . . . . . . . . . . . . . . . . . . . Robot Analysis 13 | . 3 . 1 . . 1 . . . . . . . . . . . . . . 4 . . . 1 . . . . 3 . . . . . . Prototype ID Bank 37 | . 1 . . 2 . . . . . . 3 . . . . . . . . . 4 . . . 2 . . 11 . 4 1 . 1 3 5 . Open Door 9 | . . . . 3 . . . . . . . . . . . . . . . . . . . . . 1 . 2 . . . . . . 3 . Level Access Points 1 | . . . . . . . . . . . . . . . . . . . . . . . . . . . . . . . . . . . 1 . Branch Access Points 6 | . . . . . . . . 1 . . . . . . . . . 1 . . . . . . 2 . . . . 1 . . 1 . . . Machine Index 7 | . . . . . . 1 . . . . . . . . . . . . . . . . . . 1 . . . . 1 1 . . 1 1 1 Terminal Index 1 | . . . . . . . . . . . . . . . . . . . . . . . . . . . . . . . . . . 1 . . Fabricator Index 1 | . . . . . . . . . . . . . . . . . . . . . . . . . . . . . . . . . 1 . . . Repair Station Index 2 | . . . . . . . . . . . . . . . . . . 1 . . . . . . 1 . . . . . . . . . . . Recycling Unit Index 1 | . . . . . . . . . . . . . 1 . . . . . . . . . . . . . . . . . . . . . . . Scanalyzer Index 1 | . . . . 1 . . . . . . . . . . . . . . . . . . . . . . . . . . . . . . . . Garrison Index 2 | . . . . . . . . . . . . . . . . . . . . . . . . . . . . . . . . . 1 . 1 . Alert Level 28 | . . . . 1 1 . . 2 . . . . 1 . . . 3 2 . . . . . . 5 . . . . 4 3 . . 3 3 . Unreport Threat 27 | . 1 . . 2 1 . . 1 . . . . . . . . 4 2 . . . . 2 . 3 . . . . 5 1 . . 1 4 . Locate Traps 11 | . 2 . . . . . . . . . . . 3 . . . . . . . . . . . 1 . . . . 1 2 . . 1 1 . Disarm Traps 1 | . . . . . . . . . . . . . . . . . . . . . . . . . 1 . . . . . . . . . . . Reprogram Traps 3 | . . . 1 . . . . . . . . . . . . . . . . . . . . . . . . . . . . . . 2 . . Maintenance Status 7 | . . . . . . . . . . . . . 1 . . . 1 . . . . . . . 1 . . . . 1 . . 1 1 1 . Surveillance Status 1 | . . . . . . . . . . . . . . . . . . . . . . . . . . . . . . . . . 1 . . . Patrol Status 14 | . . . . . 1 1 . . . . . . 1 . . . 1 . . . . . . . 4 . . . . 1 2 . 1 1 1 . Recall Investigation 3 | . . . . . . . . . . . . . . . . . . . . . . . . . . . . . . 1 1 . . 1 . . Recall Extermination 8 | . . . . . . . . . . . . . . . . . . . . . . . . . 3 . . . . 1 1 . . 3 . . Recall Reinforcements 3 | . . . . . . . . . . . . . . . . . . . . . . . . . 1 . . . . . 1 . . 1 . . Hauler Manifests 10 | . 1 . . 1 2 1 . . . . . . . . . . . . . . . . . . . . . . . 2 . . 1 1 1 . Registered Components 1 | . . . . . . . . . . . . . . . . . . . . . . . . . . . . . . . . . 1 . . . Registered Prototypes 1 | . . . . . . . . . . . . . . . . . . . . . . . . . . . . . . . . . . . 1 . Zone Layout 8 | . . . . . . . . 1 . . . . . . . . 1 . . . . . . . 3 . . . . . . . . 1 2 . Fabricator Hacks 34 | . . . . . . 2 . 6 . . . . 6 . . . . . . . . . . . 9 . . . . 5 2 . . 4 . . Network Status 3 | . . . . . . . . 1 . . . . 1 . . . . . . . . . . . . . . . . . . . . 1 . . Load Schematic 17 | . . . . . . 1 . 2 . . . . 3 . . . . . . . . . . . 5 . . . . 3 1 . . 2 . . Build 14 | . . . . . . 1 . 3 . . . . 2 . . . . . . . . . . . 4 . . . . 2 1 . . 1 . . Repair Station Hacks 57 | . . . . . 2 1 . . . . . . 2 . . . . 16 . . . . . . . . . . . 9 . . . 26 . 1 Scan Component 27 | . . . . . 1 . . . . . . . 1 . . . . 8 . . . . . . . . . . . 4 . . . 13 . . Repair 27 | . . . . . 1 . . . . . . . 1 . . . . 8 . . . . . . . . . . . 4 . . . 13 . . Refit 3 | . . . . . . 1 . . . . . . . . . . . . . . . . . . . . . . . 1 . . . . . 1 Recycling Unit Hacks 5 | . . . . . . . . . . . . . . . . . . . . . . . 2 . 2 . . . . . . . . . . 1 Process 2 | . . . . . . . . . . . . . . . . . . . . . . . 1 . 1 . . . . . . . . . . . Retrieve Matter 2 | . . . . . . . . . . . . . . . . . . . . . . . 1 . 1 . . . . . . . . . . . Retrieve Components 1 | . . . . . . . . . . . . . . . . . . . . . . . . . . . . . . . . . . . . 1 Scanalyzer 11 | . . . . . 1 4 . . . . . . 1 . . . . . . . . . . . . . . . . 4 . . . 1 . . Insert Component 8 | . . . . . 1 3 . . . . . . 1 . . . . . . . . . . . . . . . . 2 . . . 1 . . Analyze 3 | . . . . . . 1 . . . . . . . . . . . . . . . . . . . . . . . 2 . . . . . . Garrison Access Hacks 9 | . . . . 1 . 1 . . . . . . 1 . . . . 1 . . . . . . 2 . . . . 1 . . . 1 1 . Seal Access 9 | . . . . 1 . 1 . . . . . . 1 . . . . 1 . . . . . . 2 . . . . 1 . . . 1 1 . Unauthorized Hacks 58 | . 2 . 1 1 1 1 . 4 . . . . 5 . . . . . . . . . . . 13 . . . . 7 8 . . 8 7 . Terminals 39 | . . . . . 1 1 . 3 . . . . 3 . . . . . . . . . . . 7 . . . . 4 7 . . 6 7 . Track 12 | . . . . . . . . 1 . . . . . . . . . . . . . . . . 3 . . . . . 2 . . 2 4 . Assimilate 5 | . . . . . . 1 . . . . . . 1 . . . . . . . . . . . . . . . . . 2 . . 1 . . Botnet 11 | . . . . . 1 . . . . . . . 2 . . . . . . . . . . . 2 . . . . 3 1 . . 2 . . Disrupt 8 | . . . . . . . . 1 . . . . . . . . . . . . . . . . 1 . . . . 1 2 . . . 3 . Operators 3 | . . . . . . . . 1 . . . . . . . . . . . . . . . . 1 . . . . . . . . 1 . . Fabricators 12 | . . . . . . . . 1 . . . . 1 . . . . . . . . . . . 4 . . . . 3 1 . . 2 . . Prioritize 5 | . . . . . . . . . . . . . . . . . . . . . . . . . 1 . . . . 2 1 . . 1 . . Liberate 2 | . . . . . . . . 1 . . . . . . . . . . . . . . . . 1 . . . . . . . . . . . Recompile 5 | . . . . . . . . . . . . . 1 . . . . . . . . . . . 2 . . . . 1 . . . 1 . . Repair Stations . | . . . . . . . . . . . . . . . . . . . . . . . . . . . . . . . . . . . . . Recycling Units 7 | . 2 . 1 1 . . . . . . . . 1 . . . . . . . . . . . 2 . . . . . . . . . . . Recyclers 1 | . . . . . . . . . . . . . . . . . . . . . . . . . 1 . . . . . . . . . . . Mask 2 | . . . . . . . . . . . . . 1 . . . . . . . . . . . 1 . . . . . . . . . . . Tunnel 4 | . 2 . 1 1 . . . . . . . . . . . . . . . . . . . . . . . . . . . . . . . . Scanalyzers . | . . . . . . . . . . . . . . . . . . . . . . . . . . . . . . . . . . . . . Garrison Access . | . . . . . . . . . . . . . . . . . . . . . . . . . . . . . . . . . . . . . Data Cores Recovered 3 | . . . 1 . . . . 1 . . . . . . . . . . . . . . . . . . . . . . . . . 1 . . Used 2 | . . . 1 . . . . 1 . . . . . . . . . . . . . . . . . . . . . . . . . . . . Hacking Detections 99 | . 7 . 2 4 5 5 . 8 . . . . 9 . . . 6 3 . . . . 3 . 15 . . . . 8 3 . . 8 9 4 Full Trace Events 20 | . . . . 1 1 2 . 4 . . . . 1 . . . 2 . . . . . 1 . 2 . . . . 2 1 . . 1 . 2 Feedback Events 2 | . . . . . . . . 1 . . . . . . . . . . . . . . . . . . . . . . . . . . . 1 Corruption 1 | . . . . . . . . . . . . . . . . . . . . . . . . . . . . . . . . . . . . 1 Hackware Fried 1 | . . . . . . . . 1 . . . . . . . . . . . . . . . . . . . . . . . . . . . . Feedback Blocked . | . . . . . . . . . . . . . . . . . . . . . . . . . . . . . . . . . . . . . Robot Schematics Acquired 7 | . . . . . . . . . . . 6 . . . . . . . . . . . . . . . . . . . . . . 1 . . Robots Built 2 | . . . . . . . . 2 . . . . . . . . . . . . . . . . . . . . . . . . . . . . Authchips . | . . . . . . . . . . . . . . . . . . . . . . . . . . . . . . . . . . . . . Time 134 | . . . . . . . . 134 . . . . . . . . . . . . . . . . . . . . . . . . . . . . Total Robot Build Rating 8 | . . . . . . . . 8 . . . . . . . . . . . . . . . . . . . . . . . . . . . . Part Schematics Acquired 43 | . . . . 1 . 1 . 1 . . 10 . . . . . . . . . 4 . . . 7 . . . . 3 1 . . 11 4 . Parts Built 15 | . . . . . . 1 . 2 . . . . 2 . . . . . . . . . . . 6 . . . . 2 1 . . 1 . . Authchips 4 | . . . . . . . . . . . . . 1 . . . . . . . . . . . 2 . . . . 1 . . . . . . Time 891 | . . . . . . 134 . 143 . . . . 168 . . . . . . . . . . . 179 . . . . 140 51 . . 76 . . Total Part Build Rating 99 | . . . . . . 4 . 9 . . . . 12 . . . . . . . . . . . 45 . . . . 16 8 . . 5 . . Parts Repaired 27 | . . . . . 1 . . . . . . . 1 . . . . 8 . . . . . . . . . . . 4 . . . 13 . . Time 1938 | . . . . . 136 . . . . . . . 70 . . . . 732 . . . . . . . . . . . 182 . . . 818 . . Parts Recycled . | . . . . . . . . . . . . . . . . . . . . . . . . . . . . . . . . . . . . . Recycled Matter 285 | . . . . . . . . . . . . . . . . . . . . . . . 188 . 97 . . . . . . . . . . . Retrieved Matter 285 | . . . . . . . . . . . . . . . . . . . . . . . 188 . 97 . . . . . . . . . . . Retrieved Components 3 | . . . . . . . . . . . . . . . . . . . . . . . . . . . . . . . . . . . . 3 Parts Scanalyzed 4 | . . . . . 1 2 . . . . . . . . . . . . . . . . . . . . . . . 1 . . . . . . Part Schematics Acquired 2 | . . . . . . 1 . . . . . . . . . . . . . . . . . . . . . . . 1 . . . . . . Parts Damaged . | . . . . . . . . . . . . . . . . . . . . . . . . . . . . . . . . . . . . . Bothacking | -11 -10 -10 -9 -9 -8 -7 -7 -7 -7 -7 -7 -6 -6 -6 -6 -6 -6 -5 -5 -5 -5 -4 -4 -4 -4 -4 -4 -4 -3 -3 -3 -3 -2 -2 -2 -1 ------------ Run | Scr Mat Min Mat Sto Mat Fac Was Fac Low Low Dat Pro Fac Ext Cet Arc Hub Fac Upp Upp Zhi Pro Fac Was Fac Upp Upp War Pro Res Arm Lab Res Tes Sec Acc Used RIF Installer . | . . . . . . . . . . . . . . . . . . . . . . . . . . . . . . . . . . . . . Robots Hacked . | . . . . . . . . . . . . . . . . . . . . . . . . . . . . . . . . . . . . . Non-combat . | . . . . . . . . . . . . . . . . . . . . . . . . . . . . . . . . . . . . . Combat . | . . . . . . . . . . . . . . . . . . . . . . . . . . . . . . . . . . . . . Robot Hacks Applied . | . . . . . . . . . . . . . . . . . . . . . . . . . . . . . . . . . . . . . Relay Couplers Released 10 | . . . . . . . . 4 . . . . . . . . . . . . . . 2 . . . . . . 4 . . . . . . Machine Destruction 2 | . . . . . . . . . . . . . . . . . . . . . . . 2 . . . . . . . . . . . . . Programmers 8 | . . . . . . . . 4 . . . . . . . . . . . . . . . . . . . . . 4 . . . . . . Fabnet Peak Effective % . | . . . . . . . . . . . . . . . . . . . . . . . . . . . . . . . . . . . . . Robots Rewired 15 | . . . . . . . . . . . . . . 8 . . . . 1 . . 1 . . . . . 5 . . . . . . . . Allies Hacked . | . . . . . . . . . . . . . . . . . . . . . . . . . . . . . . . . . . . . . Hacks Repelled . | . . . . . . . . . . . . . . . . . . . . . . . . . . . . . . . . . . . . . Allies | -11 -10 -10 -9 -9 -8 -7 -7 -7 -7 -7 -7 -6 -6 -6 -6 -6 -6 -5 -5 -5 -5 -4 -4 -4 -4 -4 -4 -4 -3 -3 -3 -3 -2 -2 -2 -1 -------- Run | Scr Mat Min Mat Sto Mat Fac Was Fac Low Low Dat Pro Fac Ext Cet Arc Hub Fac Upp Upp Zhi Pro Fac Was Fac Upp Upp War Pro Res Arm Lab Res Tes Sec Acc Total Allies 61 | . . . . 10 . 1 20 2 . . . 1 1 14 2 . . . 1 . . 1 . . 2 . . 5 . . . . . 1 . . Largest Group 20 | . . . . 10 . 1 20 20 . . . 1 2 14 11 3 2 . 1 1 1 1 . . 2 . . 5 . . . . . 1 . . Highest-Rated Group 541 | . . . . 88 . 10 488 488 . . . 96 122 541 481 163 124 . 29 29 29 49 . . 112 . . 268 . . . . . 26 . . Highest-Rated Ally 159 | . . . . 16 . 10 31 32 . . . 96 96 159 159 96 96 . 29 29 29 49 . . 56 . . 65 . . . . . 26 . . Total Orders 121 | . . . . . . 2 . . . . . . 2 10 4 5 17 7 25 10 . 21 3 . . . . 14 . . . . . 1 . . STAY 24 | . . . . . . 1 . . . . . . 1 2 1 2 1 . 3 1 . 4 . . . . . 7 . . . . . 1 . . ROAM 4 | . . . . . . . . . . . . . . . . . . 1 1 1 . 1 . . . . . . . . . . . . . . FOLLOW 17 | . . . . . . 1 . . . . . . . 1 1 1 1 . 2 1 . 2 . . . . . 7 . . . . . . . . EXPLORE 7 | . . . . . . . . . . . . . . . . . 1 . 4 1 . 1 . . . . . . . . . . . . . . RETURN 69 | . . . . . . . . . . . . . 1 7 2 2 14 6 15 6 . 13 3 . . . . . . . . . . . . . Ally Attacks 850 | . . . . 41 . . . 128 . . . 19 16 98 84 25 179 48 68 25 . 69 33 . 8 . . 9 . . . . . . . . Total Damage 16329 | . . . . 435 . . . 1716 . . . 743 412 2301 1870 620 3803 813 1084 364 . 1182 533 . 223 . . 230 . . . . . . . . Kills 113 | . . . . 10 . . . 14 . . . 3 3 16 14 4 28 5 8 2 . 4 1 . 1 . . . . . . . . . . . Allies Corrupted 2 | . . . . . . . . . . . . . . . . . 1 . . . . . . . 1 . . . . . . . . . . . Allies Melted 3 | . . . . . . . . . . . . . . . . . . . . . . . . . . . . 1 . . . . 2 . . . Intel | -11 -10 -10 -9 -9 -8 -7 -7 -7 -7 -7 -7 -6 -6 -6 -6 -6 -6 -5 -5 -5 -5 -4 -4 -4 -4 -4 -4 -4 -3 -3 -3 -3 -2 -2 -2 -1 ------- Run | Scr Mat Min Mat Sto Mat Fac Was Fac Low Low Dat Pro Fac Ext Cet Arc Hub Fac Upp Upp Zhi Pro Fac Was Fac Upp Upp War Pro Res Arm Lab Res Tes Sec Acc Robot Analysis Total 13 | . 3 . 1 . . 1 . . . . . . . . . . . . . . 4 . . . 1 . . . . 3 . . . . . . Derelict Logs Recovered 8 | . . . . . . . . . 1 1 . 1 . . . . . . 2 . . 1 . . . 1 1 . . . . . . . . . Drone Launches 83 | . . . . . . . . . . . . . 2 9 2 6 15 6 21 5 . 14 3 . . . . . . . . . . . . . Drone Recoveries 80 | . . . . . . . . . . . . . 2 9 2 4 15 6 19 7 . 13 3 . . . . . . . . . . . . . Exploration | -11 -10 -10 -9 -9 -8 -7 -7 -7 -7 -7 -7 -6 -6 -6 -6 -6 -6 -5 -5 -5 -5 -4 -4 -4 -4 -4 -4 -4 -3 -3 -3 -3 -2 -2 -2 -1 ------------- Run | Scr Mat Min Mat Sto Mat Fac Was Fac Low Low Dat Pro Fac Ext Cet Arc Hub Fac Upp Upp Zhi Pro Fac Was Fac Upp Upp War Pro Res Arm Lab Res Tes Sec Acc Turns Passed 39592 | 93 1344 306 2480 3309 2289 1275 231 923 527 558 108 642 1992 1270 536 2203 1189 2427 939 557 276 1138 1021 1518 2439 96 130 722 1089 1481 553 163 351 1881 1103 433 Spaces Moved 28791 | 55 747 164 983 899 704 1600 242 1464 457 430 103 472 1987 797 227 312 572 886 455 313 157 515 431 146 3886 194 264 882 1213 1555 638 174 551 2271 1442 603 Core 499 | 8 . 26 216 . 7 . . . . . . . . . . 81 . . . . . . . . . . . . . . . . . . . 161 Treads 7233 | 47 712 138 725 899 697 . . . . . . . . . 196 231 572 886 455 313 157 515 431 146 113 . . . . . . . . . . . Legs . | . . . . . . . . . . . . . . . . . . . . . . . . . . . . . . . . . . . . . Wheels 2496 | . 35 . . . . . . . 333 430 103 472 295 797 31 . . . . . . . . . . . . . . . . . . . . . Hover 14242 | . . . 42 . . 505 242 1464 124 . . . 1692 . . . . . . . . . . . 547 194 264 882 1213 1555 638 174 551 2271 1442 442 Flight 4321 | . . . . . . 1095 . . . . . . . . . . . . . . . . . . 3226 . . . . . . . . . . . Fastest Speed 20 | 50 100 50 50 320 240 20 42 26 100 100 100 100 30 145 145 160 160 160 160 160 160 160 160 160 34 36 41 41 36 40 40 40 33 33 33 45 Average Speed 92 | 144 157 142 220 320 255 35 42 38 101 100 100 101 51 145 160 650 160 160 160 160 160 160 160 162 40 40 41 41 40 40 40 40 46 33 35 46 Slowest Speed 2050 | 160 160 160 320 320 1750 94 42 98 115 100 115 115 145 145 240 2050 160 160 160 160 160 160 160 240 200 41 41 41 41 44 44 40 131 36 560 156 Overloaded Moves 26 | . . . . . . 3 . 9 . . . . 3 . . . . . . . . . . . . 7 . . 4 . . . . . . . Propulsion Burnouts . | . . . . . . . . . . . . . . . . . . . . . . . . . . . . . . . . . . . . . Robots Hopped 17 | . . . . . . 5 . . . . . . . . . . . . . . . . . . 12 . . . . . . . . . . . Cave-ins Triggered 5 | . . . . . . . . . . . . . . . . . . . . . . . . 4 . . . . . . . . . 1 . . Teleports 4 | . . . . . . . . . . . . . . . . . . . . . . . . . . . . . . . 1 . . . 3 . Exploration Rate (%) 56 | 5 98 49 54 91 61 37 89 37 63 53 70 58 27 55 56 86 63 20 97 52 60 65 17 73 48 41 47 88 81 34 31 81 20 90 62 21 Regions Visited 36 Branch Regions 22 Pre-discovered Areas 10 | . 2 . 1 1 . . . . . . 1 . . . . . . . . . 3 . . . . 1 1 . . . . . . . . . Known Exits Taken 23 | . . . . . . . . 1 1 1 1 1 1 1 1 1 1 1 1 1 1 1 . . 1 1 1 1 1 1 . . 1 . 1 . Unknown Exits Taken 9 | 1 1 1 1 1 1 . . . . . . . . . . . . . . . . . . . . . . . . . 1 1 . 1 . . Scrap Searched 20 | . . 1 . . . . . . 2 3 . 2 . . . . . . 2 1 . . . . . 2 2 . 5 . . . . . . . Spaces Dug 641 | . . . . 3 8 25 . 21 2 20 . 21 45 . . . 181 46 6 . . 16 3 11 81 . 20 8 49 30 8 . 7 11 7 12 Terrain Destroyed 1644 | . . . 71 3 8 36 . 44 3 31 . 56 77 1 7 12 371 107 11 18 . 112 48 24 137 1 35 8 133 171 8 . 7 15 52 37 Melee 214 | . . . . 3 2 23 . 19 1 8 . 16 39 . . . 6 8 . . . . 3 . . . . 8 22 22 8 . 7 7 . 12 Projectile 326 | . . . . . . 5 . 4 2 23 . 8 9 1 7 12 14 40 11 2 . 9 14 24 72 1 1 . 29 11 . . . 8 19 . AOE 1100 | . . . 71 . 6 8 . 21 . . . 32 29 . . . 350 59 . 16 . 103 30 . 65 . 34 . 82 136 . . . . 33 25 Terrain Rammed . | . . . . . . . . . . . . . . . . . . . . . . . . . . . . . . . . . . . . . Walls Destroyed . | . . . . . . . . . . . . . . . . . . . . . . . . . . . . . . . . . . . . . Machines Disabled . | . . . . . . . . . . . . . . . . . . . . . . . . . . . . . . . . . . . . . Actions | -11 -10 -10 -9 -9 -8 -7 -7 -7 -7 -7 -7 -6 -6 -6 -6 -6 -6 -5 -5 -5 -5 -4 -4 -4 -4 -4 -4 -4 -3 -3 -3 -3 -2 -2 -2 -1 --------- Run | Scr Mat Min Mat Sto Mat Fac Was Fac Low Low Dat Pro Fac Ext Cet Arc Hub Fac Upp Upp Zhi Pro Fac Was Fac Upp Upp War Pro Res Arm Lab Res Tes Sec Acc Total 39246 | 66 862 208 1210 1189 1015 2222 372 1742 486 510 108 581 2797 904 331 408 762 1690 619 361 182 763 687 1355 4523 206 280 1222 1702 2182 881 236 621 3322 1958 683 Wait 6838 | . 21 1 84 124 161 483 116 188 1 32 . 57 579 30 11 22 104 550 105 41 2 190 162 1159 344 8 10 270 345 332 166 16 38 917 145 24 Move 28723 | 54 746 163 982 898 703 1590 241 1463 456 429 102 471 1986 796 226 311 571 886 454 312 156 514 431 143 3862 193 263 881 1212 1554 637 173 550 2270 1441 603 Hop 16 | . . . . . . 5 . . . . . . . . . . . . . . . . . . 11 . . . . . . . . . . . Pick Up 375 | 6 24 3 36 22 13 9 6 8 . 1 2 2 19 5 17 6 7 19 2 1 4 . 5 1 45 . . 12 8 30 5 11 6 16 22 2 Fast Attach 204 | 6 2 . 10 4 4 14 . 7 4 . . . 20 . 8 6 2 12 2 . 7 1 1 . 21 . . 5 6 14 3 2 4 17 15 7 Attach 178 | . 1 4 4 4 7 7 . 1 . 1 1 1 13 . 2 1 7 20 2 . 1 . 10 3 21 . . 1 7 19 7 5 3 4 16 5 Detach 76 | . . . . . . 1 . . . . . . 11 . 1 . 2 11 1 . 1 . 7 . 4 . . . 7 12 5 . . 2 8 3 Swap 354 | . 4 4 9 17 10 19 3 11 6 3 1 10 17 3 11 5 11 31 8 3 2 22 18 4 18 2 5 4 26 26 7 4 2 12 16 . Drop 454 | . 17 13 22 33 18 40 6 15 2 2 2 2 28 1 20 9 9 18 4 . 9 . 3 1 36 . . 17 14 38 7 9 7 22 27 3 Fire 1527 | . 36 18 59 66 89 22 . 15 14 34 . 18 80 5 35 46 37 129 39 4 . 35 44 42 161 3 2 1 54 93 34 . 1 48 260 3 Melee 353 | . . . . 9 2 32 . 34 3 8 . 18 43 1 . . 8 11 . . . . 4 . . . . 13 23 64 10 16 10 14 . 30 Ram 3 | . . . . . . . . . . . . . . . . . . . . . . . . . . . . . . . . . . . . 3 Kick . | . . . . . . . . . . . . . . . . . . . . . . . . . . . . . . . . . . . . . Crush 46 | . 11 2 4 12 8 . . . . . . . . . . . 4 3 . . . . 2 . . . . . . . . . . . . . Escape Stasis 10 | . . . . . . . . . . . . . . . . . . . . . . . . 2 . . . . . . . . . . 8 . Rewire 83 | . . . . . . . . . . . . . . 62 . . . . 2 . . 1 . . . . . 18 . . . . . . . . Trap 3 | . . . . . . . . . . . . 2 1 . . . . . . . . . . . . . . . . . . . . . . . Miscellaneous 3 | . . . . . . . . . . . . . . 1 . 2 . . . . . . . . . . . . . . . . . . . . Route ------- -11/Scrapyard -10/Materials (discovered 4 exits: *Mat x3 / [*Min]) -10/Mines -9/Materials (discovered 4 exits: *Mat / [*Min x2] / *Sto) -9/Storage -8/Materials (discovered 2 exits: *Fac x2) -7/Factory -7/Waste -7/Factory (discovered 3 exits: *Fac / *Low x2) -7/Lower Caves -7/Lower Caves (discovered 2 exits: Fac / *Dat) -7/Data Miner -6/Proximity Caves -6/Factory (discovered 4 exits: *Fac x2 / *Low / *Ext) -6/Extension (discovered 2 exits: *Fac / *Cet) -6/Cetus (discovered 2 exits: *Fac / *Arc) -6/Archives (discovered 3 exits: *Fac / *Hub x2) -6/Hub_04(d) (discovered 3 exits: *Fac x3) -5/Factory (discovered 2 exits: *Upp x2) -5/Upper Caves -5/Upper Caves (discovered 2 exits: *Fac / *Zhi) -5/Zhirov -4/Proximity Caves -4/Factory -4/Waste -4/Factory (discovered 4 exits: *Res x2 / *Upp x2) -4/Upper Caves -4/Upper Caves -4/Warlord -3/Proximity Caves -3/Research (discovered 3 exits: *Arm / Qua x2) -3/Armory -3/Lab -2/Research (discovered 2 exits: *Tes x2) -2/Testing (discovered 2 exits: *Acc / *Sec) -2/Section 7 -1/Access History --------- Turn | Location | Event 5 | -11/Scrapyard | Discovered new exit (range 14) 94 | -11/Scrapyard | Entered Materials 258 | -10/Materials | Discovered new exit (range 16) 304 | -10/Materials | Build established: Mutant 418 | -10/Materials | Discovered new exit (range 16) 551 | -10/Materials | Discovered new exit (range 7) 697 | -10/Materials | Central database locked down 701 | -10/Materials | Discovered new exit (range 16) 1438 | -10/Materials | Entered Mines 1503 | -10/Mines | A weapon hastily lodged in a ceiling crevice suddenly fell to the ground 1577 | -10/Mines | Found a damaged Exp. Sensor Array with a note attached 1582 | -10/Mines | Found Prototype Device 1716 | -10/Mines | Core integrity fell below 50% 1723 | -10/Mines | Destroyed YI-UF0 1738 | -10/Mines | Discovered new exit (range 8) 1744 | -10/Mines | Entered Materials 1744 | -9/Materials | Evolved 2 slots: Utility x2 1744 | -9/Materials | Discovered new exit (range 7) 1750 | -9/Materials | Lost 5 parts (4n1w) 1873 | -9/Materials | Discovered new exit (range 9) 2723 | -9/Materials | Discovered new exit (range 7) 3621 | -9/Materials | Discovered new exit (range 4) 4202 | -9/Materials | Build established: Scavenger-Mutant 4224 | -9/Materials | Entered Storage 4442 | -9/Storage | Assisted by bots powering up and referring to "LRC-V3" 4737 | -9/Storage | Build established: Commander-Mutant 5214 | -9/Storage | Garrison activated, responded to threat 5357 | -9/Storage | Build established: Mutant 7417 | -9/Storage | Discovered new exit (range 15) 7533 | -9/Storage | Entered Materials 7533 | -8/Materials | Evolved 2 slots: Propulsion x1, Utility x1 7834 | -8/Materials | Build established: Scavenger-Mutant 7864 | -8/Materials | Garrison activated, responded to threat 8172 | -8/Materials | Discovered new exit (range 13) 8826 | -8/Materials | Build established: Mutant 9038 | -8/Materials | Discovered new exit (range 11) 9260 | -8/Materials | Identified Exp. Sensor Array 9432 | -8/Materials | Repaired Broken Exp. Sensor Array 9565 | -8/Materials | Build established: Hacker-Mutant 9822 | -8/Materials | Entered Factory 9822 | -7/Factory | Evolved 2 slots: Propulsion x1, Utility x1 10277 | -7/Factory | Build established: Hacker-Sprinter 10409 | -7/Factory | Discovered new exit (range 14) 10413 | -7/Factory | Identified exit to Factory 10587 | -7/Factory | Fabricated Cld. Airjet? 10718 | -7/Factory | Build established: Hacker-Mutant 11097 | -7/Factory | Sucked down chute 11097 | -7/Factory | Entered Waste 11098 | -7/Waste | Joined by Warlord forces that had cleared the area 11169 | -7/Waste | Discovered new exit (range 12) 11295 | -7/Waste | Identified exit to Factory 11328 | -7/Waste | Entered Factory 11328 | -7/Factory | Accompanied by 20 allies 11620 | -7/Factory | Garrison activated, responded to threat 11670 | -7/Factory | Found Prototype Launcher 11683 | -7/Factory | Identified Rocket Array 11861 | -7/Factory | Hacking Suite fried by hacking feedback 11879 | -7/Factory | Identified exit to Lower Caves 11980 | -7/Factory | Fabricated Y-54 Guardian? 12045 | -7/Factory | Fabricated Scatter Rocket Array? 12046 | -7/Factory | Fabricated Cld. Airjet? 12220 | -7/Factory | Discovered exit to Factory (range 10) 12227 | -7/Factory | Cargo convoy interrupted 12251 | -7/Factory | Entered Lower Caves 12571 | -7/Lower Caves | Learned location of 1 exit from Factory 12654 | -7/Lower Caves | Discovered new exit (range 9) 12688 | -7/Lower Caves | Identified exit to Lower Caves 12778 | -7/Lower Caves | Entered another Lower Caves area 13324 | -7/Lower Caves | Discovered new exit (range 7) 13329 | -7/Lower Caves | Identified exit to Data Miner 13336 | -7/Lower Caves | Entered Data Miner 13337 | -7/Data Miner | Discovered new exit (range 6) 13356 | -7/Data Miner | Met Data Miner 13375 | -7/Data Miner | Learned location of Section 7 (-2) 13375 | -7/Data Miner | Acquired the access code to Warlord's prototype stash 13391 | -7/Data Miner | Received God Mode back door access code from Data Miner 13427 | -7/Data Miner | Identified exit to Proximity Caves 13444 | -7/Data Miner | Entered Proximity Caves 13450 | -6/Proximity Caves | Learned Factory terminal intel 13519 | -6/Proximity Caves | Escorted by Enhanced Grunt 14079 | -6/Proximity Caves | Discovered exit to Factory (range 8) 14086 | -6/Proximity Caves | Entered Factory 14086 | -6/Factory | Accompanied by 1 ally 14086 | -6/Factory | Evolved 2 slots: Propulsion x2 14087 | -6/Factory | Identified exit to Factory 14088 | -6/Factory | Loaded intel: 28 terminal locations 14262 | -6/Factory | Discovered new exit (range 6) 14588 | -6/Factory | Discovered new exit (range 13) 14632 | -6/Factory | Identified exit to Extension 14779 | -6/Factory | Identified exit to Lower Caves 14875 | -6/Factory | Incoming investigation squad redirected 15064 | -6/Factory | Found Prototype Processor 15077 | -6/Factory | Identified Exp. Targeting Computer 15092 | -6/Factory | Discovered exit to Factory (range 6) 15196 | -6/Factory | Fabricated Combat Drone Bay? 15277 | -6/Factory | Repaired Cld. Airjet 15620 | -6/Factory | Build established: Scavenger-Mutant 15780 | -6/Factory | Fabricated Combat Drone Bay? 16078 | -6/Factory | Entered Extension 16199 | -6/Extension | Allies destroyed B-75 Beast 16231 | -6/Extension | Allies destroyed B-75 Beast 16643 | -6/Extension | Rescued a captive Derelict 16644 | -6/Extension | Rescued a captive Derelict 16674 | -6/Extension | Rescued A7 16805 | -6/Extension | Rescued a captive Derelict 16818 | -6/Extension | Rescued a captive Derelict 16819 | -6/Extension | Rescued a captive Derelict 17175 | -6/Extension | Build established: Commander-Mutant 17299 | -6/Extension | Discovered new exit (range 16) 17301 | -6/Extension | Discovered exit to Factory (range 15) 17343 | -6/Extension | Identified exit to Cetus 17348 | -6/Extension | Entered Cetus 17348 | -6/Cetus | Accompanied by 11 allies (A7) 17353 | -6/Cetus | Acquired a Cetus Manufacturing Module code from A7 17372 | -6/Cetus | Spotted Cetus Guard 17372 | -6/Cetus | Spotted Cetus Guard 17376 | -6/Cetus | Spotted Cetus Guard 17376 | -6/Cetus | Spotted Cetus Guard 17390 | -6/Cetus | Allies destroyed Cetus Guard 17395 | -6/Cetus | Allies destroyed Cetus Guard 17396 | -6/Cetus | Allies destroyed Cetus Guard 17397 | -6/Cetus | Allies destroyed Cetus Guard 17490 | -6/Cetus | Started Cetus Manufacturing Module 17509 | -6/Cetus | Discovered new exit (range 16) 17515 | -6/Cetus | Manufactured an Enhanced Grunt 17540 | -6/Cetus | Manufactured an Enhanced Grunt 17542 | -6/Cetus | Cetus Manufacturing Module disabled 17545 | -6/Cetus | Spotted Cetus Guard 17545 | -6/Cetus | Spotted Cetus Guard 17548 | -6/Cetus | Allies destroyed Cetus Guard 17554 | -6/Cetus | Allies destroyed Cetus Guard 17556 | -6/Cetus | Spotted Cetus Guard 17558 | -6/Cetus | Allies destroyed Cetus Guard 17562 | -6/Cetus | Discovered exit to Factory (range 16) 17572 | -6/Cetus | Met Revision 17 17718 | -6/Cetus | System corruption reached 10% 17749 | -6/Cetus | Destroyed A7 17750 | -6/Cetus | Extracted ID and sensor layout for unrecognized location from A7's data core 17769 | -6/Cetus | Found Prototype Protection 17769 | -6/Cetus | Identified Med. Regenerative Plating 17874 | -6/Cetus | Build established: Scavenger-Mutant 17877 | -6/Cetus | Identified exit to Archives 17884 | -6/Cetus | Entered Archives 17884 | -6/Archives | Accompanied by 3 allies 17922 | -6/Archives | Discovered new exit (range 26) 18106 | -6/Archives | Discovered new exit (range 16) 18264 | -6/Archives | Discovered exit to Factory (range 15) 20074 | -6/Archives | Identified exit to Hub_04(d) 20087 | -6/Archives | Entered Hub_04(d) 20087 | -6/Hub_04(d) | Accompanied by 4 allies 20154 | -6/Hub_04(d) | Discovered exit to Factory (range 12) 20284 | -6/Hub_04(d) | Discovered exit to Factory (range 5) 20453 | -6/Hub_04(d) | Discovered exit to Factory (range 6) 20453 | -6/Hub_04(d) | Spotted B-75 Beast 20791 | -6/Hub_04(d) | Network Hub disabled 20881 | -6/Hub_04(d) | Network Hub disabled 20913 | -6/Hub_04(d) | Spotted Lightning 21075 | -6/Hub_04(d) | Destroyed Lightning 21076 | -6/Hub_04(d) | Spotted Lightning 21082 | -6/Hub_04(d) | Spotted Lightning 21105 | -6/Hub_04(d) | Destroyed Lightning 21108 | -6/Hub_04(d) | Destroyed Lightning 21136 | -6/Hub_04(d) | Found Prototype Device 21137 | -6/Hub_04(d) | First assault squad dispatched 21138 | -6/Hub_04(d) | Found Prototype Device 21157 | -6/Hub_04(d) | Found Prototype Device 21169 | -6/Hub_04(d) | Identified Exp. Phase Shifter 21170 | -6/Hub_04(d) | Identified Exp. EM Disruption Field (x2) 21175 | -6/Hub_04(d) | Found Prototype Energy Cannon 21199 | -6/Hub_04(d) | Found Exp. Targeting Computer 21276 | -6/Hub_04(d) | Entered Factory 21276 | -5/Factory | Evolved 2 slots: Power x1, Utility x1 21982 | -5/Factory | Identified exit to Upper Caves 21994 | -5/Factory | Identified EMDS 22327 | -5/Factory | Garrison activated, responded to threat 22426 | -5/Factory | Cargo convoy interrupted 22466 | -5/Factory | Destroyed 11 combat bots 22501 | -5/Factory | Repaired Centrium Heavy Treads 22584 | -5/Factory | Repaired Scatter Rocket Array? 22702 | -5/Factory | Repaired Adv. KE Penetrator 22759 | -5/Factory | Repaired Hvy. Treads 22870 | -5/Factory | Repaired Centrium Heavy Treads 22969 | -5/Factory | Build established: Hacker-Mutant 22973 | -5/Factory | Repaired Adv. KE Penetrator 23048 | -5/Factory | Repaired Quantum Reactor 23076 | -5/Factory | First assault squad dispatched 23157 | -5/Factory | Repaired Com. Particle Reactor? 23520 | -5/Factory | Build established: Scavenger-Mutant 23703 | -5/Factory | Entered Upper Caves 23828 | -5/Upper Caves | Learned Factory terminal intel 24352 | -5/Upper Caves | Discovered new exit (range 2) 24354 | -5/Upper Caves | Identified exit to Upper Caves 24545 | -5/Upper Caves | Learned location of 1 exit from Factory 24642 | -5/Upper Caves | Entered another Upper Caves area 24642 | -5/Upper Caves | Accompanied by 3 allies 24734 | -5/Upper Caves | Discovered new exit (range 11) 25136 | -5/Upper Caves | Discovered new exit (range 22) 25180 | -5/Upper Caves | Identified exit to Zhirov 25199 | -5/Upper Caves | Entered Zhirov 25199 | -5/Zhirov | Accompanied by 1 ally 25200 | -5/Zhirov | Discovered new exit (range 3) 25231 | -5/Zhirov | Met Zhirov 25266 | -5/Zhirov | Learned location of Quarantine (-3) 25266 | -5/Zhirov | Learned location of Command (-1) 25266 | -5/Zhirov | Learned location of Testing (-2) 25276 | -5/Zhirov | Zhirov requested help retrieving the SGEMP Prototype 25300 | -5/Zhirov | Found Alien Artifact 25300 | -5/Zhirov | Identified Integrated Reactor 25300 | -5/Zhirov | Installed Integrated Reactor, increased core energy generation (+10) 25386 | -5/Zhirov | Found Alien Artifact 25471 | -5/Zhirov | Identified exit to Proximity Caves 25475 | -5/Zhirov | Entered Proximity Caves 25475 | -4/Proximity Caves | Accompanied by 1 ally 25628 | -4/Proximity Caves | Attracted the attention of an 0b10 checkpoint 25856 | -4/Proximity Caves | Attracted the attention of an 0b10 outpost 25932 | -4/Proximity Caves | Destroyed 7 combat bots 26091 | -4/Proximity Caves | Allies destroyed B-86 Titan 26116 | -4/Proximity Caves | Learned Research machine intel 26606 | -4/Proximity Caves | Discovered new exit (range 4) 26611 | -4/Proximity Caves | Identified exit to Factory 26613 | -4/Proximity Caves | Entered Factory 26613 | -4/Factory | Evolved 2 slots: Utility x2 26614 | -4/Factory | Identified exit to Research 26615 | -4/Factory | Loaded intel: 26 terminal locations 26863 | -4/Factory | First assault squad dispatched 26889 | -4/Factory | Incoming assault squad redirected 27192 | -4/Factory | Incoming investigation squad redirected 27634 | -4/Factory | Sucked down chute 27634 | -4/Factory | Entered Waste 27700 | -4/Waste | Destroyed C-40 Crusher 27700 | -4/Waste | Spotted C-40 Crusher 27743 | -4/Waste | Spotted C-40 Crusher 27790 | -4/Waste | Spotted C-40 Crusher 27804 | -4/Waste | Spotted C-40 Crusher 27833 | -4/Waste | Spotted C-40 Crusher 27836 | -4/Waste | Build established: Hacker-Mutant 27884 | -4/Waste | Crushed by falling debris 27888 | -4/Waste | Crushed by falling debris 27888 | -4/Waste | System corruption reached 10% 27919 | -4/Waste | Lost 3 parts (1p2u) 28176 | -4/Waste | Build established: Scavenger-Mutant 28893 | -4/Waste | Crushed by falling debris 28966 | -4/Waste | Destroyed C-40 Crusher 29002 | -4/Waste | Crushed by Compactor (0 parts destroyed, 1 dropped) 29029 | -4/Waste | Crushed by falling debris 29128 | -4/Waste | Discovered new exit (range 16) 29152 | -4/Waste | Entered Factory 29428 | -4/Factory | Discovered exit to Research (range 11) 29474 | -4/Factory | Spotted B-86 Titan 29499 | -4/Factory | Incoming investigation squad redirected 29661 | -4/Factory | Noticed a derelict Sapper rigging charges 29692 | -4/Factory | Spotted B-86 Titan 29735 | -4/Factory | Build established: Hacker-Mutant 29765 | -4/Factory | Identified exit to Upper Caves 29820 | -4/Factory | Fabricated Adv. Component Analysis Suite (x1) 30173 | -4/Factory | Discovered exit to Research (range 10) 30435 | -4/Factory | Incoming investigation squad redirected 30606 | -4/Factory | Build established: Wizard-Mutant 30978 | -4/Factory | Fabricated Cmb. Linear Gravjet? 31071 | -4/Factory | Fabricated Cmb. Linear Gravjet (x2) 31092 | -4/Factory | Fabricated Hcp. Storage Unit (x1) 31409 | -4/Factory | Found Quantum Capacitor 31566 | -4/Factory | Assembled infested ambush trap array 31591 | -4/Factory | Entered Upper Caves 31597 | -4/Upper Caves | Spotted B-86 Titan 31667 | -4/Upper Caves | Discovered new exit (range 7) 31670 | -4/Upper Caves | Identified exit to Upper Caves 31687 | -4/Upper Caves | Entered another Upper Caves area 31788 | -4/Upper Caves | Discovered new exit (range 16) 31795 | -4/Upper Caves | Identified exit to Warlord 31817 | -4/Upper Caves | Entered Warlord 31832 | -4/Warlord | System corruption cleaned by Quarantine Array 32060 | -4/Warlord | Visited the Vortex Lab 32063 | -4/Warlord | Found Prototype Energy Cannon 32063 | -4/Warlord | Identified Vortex Driver 32068 | -4/Warlord | Warlord's base attacked by MAIN.C 32091 | -4/Warlord | Met Warlord 32096 | -4/Warlord | Opened Warlord's prototype stash 32223 | -4/Warlord | Spotted B-90 Cyclops 32418 | -4/Warlord | Warlord forces counterattacked 32423 | -4/Warlord | Spotted Striker 32497 | -4/Warlord | Spotted Striker 32528 | -4/Warlord | Opened side exit 32535 | -4/Warlord | Discovered new exit (range 11) 32539 | -4/Warlord | Identified exit to Proximity Caves 32539 | -4/Warlord | Entered Proximity Caves 32987 | -3/Proximity Caves | Found Imp. Powered Armor 33625 | -3/Proximity Caves | Discovered exit to Research (range 8) 33628 | -3/Proximity Caves | Entered Research 33628 | -3/Research | Evolved 2 slots: Utility x2 33629 | -3/Research | Loaded intel: 107 machine locations 33727 | -3/Research | Repaired Exp. Weapon Shielding 33786 | -3/Research | Identified exit to Armory 33786 | -3/Research | Identified exit to Quarantine 33922 | -3/Research | Fabricated Lrn. Terrain Scanner (x1) 34142 | -3/Research | Found Prototype Processor 34151 | -3/Research | Identified Spectral Analyzer 34206 | -3/Research | Found Fusion Bomb Launcher 34226 | -3/Research | Build established: Wizard-Scout 34242 | -3/Research | Identified Transdimensional Reconstructor 34838 | -3/Research | Build established: Wizard-Mutant 34846 | -3/Research | Repaired Cmb. Linear Gravjet? 34916 | -3/Research | Lost 4 parts (2p1n1u) 34955 | -3/Research | Repaired Cmb. Linear Gravjet 34985 | -3/Research | Repaired Imp. Powered Armor 35034 | -3/Research | Spotted B-86 Titan 35055 | -3/Research | Incoming investigation squad redirected 35090 | -3/Research | Fabricated Exp. Transmission Jammer (x1) 35109 | -3/Research | Entered Armory 35513 | -3/Armory | Spotted B-86 Titan 35550 | -3/Armory | Build established: Wizard-Scout 35592 | -3/Armory | Warped through subspace to slip node 35592 | -3/Armory | Discovered new exit (range 1) 35656 | -3/Armory | Fabricated Spectral Analyzer (x1) 35662 | -3/Armory | Entered Lab 35665 | -3/Lab | Discovered new exit (range 9) 35670 | -3/Lab | Hidden lab's door opened automatically 35670 | -3/Lab | Sensor layout match revealed 35676 | -3/Lab | Gained access to the hidden lab's interior 35692 | -3/Lab | Found Prototype Energy Cannon 35694 | -3/Lab | Found Prototype Energy Cannon 35697 | -3/Lab | Found Prototype Protection 35700 | -3/Lab | Identified Potential Cannon 35708 | -3/Lab | Found Prototype Hackware 35721 | -3/Lab | Identified Warp Cannon 35723 | -3/Lab | Identified Hvy. Regenerative Plating 35754 | -3/Lab | Identified Quantum Router 35755 | -3/Lab | Found Alien Artifact 35763 | -3/Lab | Found Alien Artifact 35778 | -3/Lab | Found Transdimensional Reconstructor 35788 | -3/Lab | Identified Integrated Mediator 35788 | -3/Lab | Installed Integrated Mediator, increased core attachment efficiency. 35802 | -3/Lab | Identified Core Expander 35802 | -3/Lab | Installed Core Expander, added new Weapon slot 35825 | -3/Lab | Entered Research 35825 | -2/Research | Warlord forces began assault on 0b10 35825 | -2/Research | Evolved 2 slots: Propulsion x1, Utility x1 35849 | -2/Research | Identified exit to Testing 35921 | -2/Research | Borebot progress halted 35935 | -2/Research | Research machine network offline 35978 | -2/Research | Met up with Warlord 36023 | -2/Research | Found Prototype Processor 36037 | -2/Research | Identified Exp. Melee Analysis Suite 36053 | -2/Research | Found Prototype Launcher 36054 | -2/Research | Identified Ragnarok Missile Launcher 36109 | -2/Research | Spotted Striker 36176 | -2/Research | Entered Testing 36328 | -2/Testing | Found Prototype Processor 36344 | -2/Testing | Identified Exp. Target Analyzer 36349 | -2/Testing | Spotted Striker 36419 | -2/Testing | Found Prototype Device 36432 | -2/Testing | Identified Exp. Shock Absorption System 36468 | -2/Testing | Repaired Cmb. Linear Gravjet 36543 | -2/Testing | Repaired Cmb. Linear Gravjet 36624 | -2/Testing | Repaired Exp. Utility Shielding 36694 | -2/Testing | Repaired Mic. Antimatter Reactor 36769 | -2/Testing | Repaired Cmb. Linear Gravjet 36845 | -2/Testing | Repaired Cmb. Linear Gravjet 36920 | -2/Testing | Repaired Cmb. Linear Gravjet 36996 | -2/Testing | Repaired Cmb. Linear Gravjet 37059 | -2/Testing | Repaired Adv. Coolant Injector 37110 | -2/Testing | Repaired Adv. Sensor Array? 37117 | -2/Testing | Spotted D7-VZG(L) 37225 | -2/Testing | Fabricated Exp. Weapon Shielding? 37290 | -2/Testing | Build established: Hacker-Sprinter 37784 | -2/Testing | Crushed by falling debris 37801 | -2/Testing | Found Prototype Energy Cannon 37801 | -2/Testing | Identified Null Cannon 37817 | -2/Testing | Discovered new exit (range 15) 37863 | -2/Testing | Spotted PD-UBFF9VDK24 37871 | -2/Testing | Found Prototype Energy Cannon 37871 | -2/Testing | Identified Disintegrator 37900 | -2/Testing | Repaired Exp. Weapon Shielding 37938 | -2/Testing | Repaired Mic. Antimatter Reactor 37980 | -2/Testing | Repaired Exp. Utility Shielding 38013 | -2/Testing | Spotted PH-54RO837SNR 38032 | -2/Testing | Incoming investigation squad redirected 38032 | -2/Testing | Spotted Fortress 38055 | -2/Testing | Discovered new exit (range 6) 38057 | -2/Testing | Entered Section 7 38175 | -2/Section 7 | Scanned by Researcher 38184 | -2/Section 7 | Intercept squad dispatched 38186 | -2/Section 7 | Identified exit to Access 38190 | -2/Section 7 | Spotted Tracker 38190 | -2/Section 7 | Spotted Tracker 38191 | -2/Section 7 | Destroyed Tracker 38195 | -2/Section 7 | Destroyed Tracker 38211 | -2/Section 7 | Spotted Combat Programmer 38212 | -2/Section 7 | Spotted Combat Programmer 38225 | -2/Section 7 | Destroyed Combat Programmer 38255 | -2/Section 7 | Destroyed Combat Programmer 38267 | -2/Section 7 | Found Exp. Phase Shifter 38599 | -2/Section 7 | Spotted Executioner 38599 | -2/Section 7 | Spotted Executioner 38602 | -2/Section 7 | Destroyed 7 combat bots 38610 | -2/Section 7 | Spotted B-99 Colossus 38643 | -2/Section 7 | Found Alien Artifact 38643 | -2/Section 7 | Identified Integrity Redistributor 38643 | -2/Section 7 | Used Integrity Redistributor, redistributed integrity from core (-211) 38645 | -2/Section 7 | Found Integrity Redistributor 38651 | -2/Section 7 | Found Integrity Redistributor 38659 | -2/Section 7 | Intercept squad dispatched 38677 | -2/Section 7 | Spotted Tracker 38677 | -2/Section 7 | Spotted Tracker 38679 | -2/Section 7 | Spotted Tracker 38681 | -2/Section 7 | Destroyed Tracker 38684 | -2/Section 7 | Destroyed Tracker 38687 | -2/Section 7 | Destroyed Tracker 38715 | -2/Section 7 | Spotted Combat Programmer 38715 | -2/Section 7 | Spotted Combat Programmer 38717 | -2/Section 7 | Spotted Combat Programmer 38724 | -2/Section 7 | Destroyed Combat Programmer 38746 | -2/Section 7 | Destroyed Combat Programmer 38759 | -2/Section 7 | Destroyed Combat Programmer 38778 | -2/Section 7 | Found Alien Artifact 38778 | -2/Section 7 | Identified LRC Storage 38778 | -2/Section 7 | Installed LRC Storage, increased inventory capacity (+2) 38781 | -2/Section 7 | Found Alien Artifact 38781 | -2/Section 7 | Identified LRC Boosters 38781 | -2/Section 7 | Installed LRC Boosters, increased mass support (+10) 38786 | -2/Section 7 | Found Exp. Phase Shifter 38807 | -2/Section 7 | First assault squad dispatched 38832 | -2/Section 7 | Incoming assault squad redirected 38865 | -2/Section 7 | Found Exp. Targeting Computer 38911 | -2/Section 7 | Used Integrity Redistributor, redistributed integrity from core (-98) 38912 | -2/Section 7 | Core integrity fell below 50% 38924 | -2/Section 7 | Spotted B-90 Cyclops 38939 | -2/Section 7 | Intercept squad dispatched 38941 | -2/Section 7 | Spotted Tracker 38941 | -2/Section 7 | Spotted Tracker 38942 | -2/Section 7 | Spotted Tracker 38945 | -2/Section 7 | Spotted Combat Programmer 38946 | -2/Section 7 | Spotted Combat Programmer 38947 | -2/Section 7 | System corruption reached 10% 38949 | -2/Section 7 | Spotted Combat Programmer 38952 | -2/Section 7 | Destroyed Tracker 38956 | -2/Section 7 | Destroyed Tracker 38970 | -2/Section 7 | Destroyed Tracker 38979 | -2/Section 7 | Destroyed Combat Programmer 38987 | -2/Section 7 | Destroyed Combat Programmer 39006 | -2/Section 7 | Lost 3 parts (1p1u1w) 39034 | -2/Section 7 | Destroyed Combat Programmer 39070 | -2/Section 7 | Warped through subspace 39071 | -2/Section 7 | Spotted Alpha 7 39072 | -2/Section 7 | Spotted Alpha 7 39077 | -2/Section 7 | Incoming assault squad redirected 39092 | -2/Section 7 | Found Transdimensional Reconstructor 39093 | -2/Section 7 | Found Transdimensional Reconstructor 39097 | -2/Section 7 | Warped through subspace 39098 | -2/Section 7 | Core integrity fell below 20% 39127 | -2/Section 7 | Warped through subspace 39160 | -2/Section 7 | Entered Access 39160 | -1/Access | Evolved 2 slots: Power x1, Propulsion x1 39170 | -1/Access | Found Enh. Force Lance 39172 | -1/Access | Found Unknown Device 39172 | -1/Access | Identified Antimissile System 39188 | -1/Access | Lost 5 parts (1p1n1u2w) 39291 | -1/Access | Spotted B-99 Colossus 39454 | -1/Access | First assault squad dispatched 39470 | -1/Access | Build established: Mutant 39470 | -1/Access | Incoming assault squad redirected 39488 | -1/Access | Core integrity fell below 50% 39509 | -1/Access | Destroyed 12 combat bots 39546 | -1/Access | Lost 14 parts (5n7u2w) 39555 | -1/Access | Incoming investigation squad redirected 39583 | -1/Access | Intercept squad dispatched 39592 | -1/Access | Spotted Tracker 39593 | -1/Access | Spotted Tracker 39593 | -1/Access | Self-destructed Last Messages --------------- 39553_ R-10 Processor inserts Unknown Processor into recycling unit. 39555_ ALERT: Higher priority target reported, redirecting investigation. 39556_ R-10 Processor inserts Unknown Energy Gun into recycling unit. 39564_ Connecting with Repair Station... >>Refit Scanning configuration... Attaching: Backup Power VII x2 Backup Propulsion VII x2 Backup Laser VII x2 39567_ IFFX%:R5APXE3 /EO%MIX4E4%,UQMZ 39568_ Dropped Backup Laser VII. 39573_ Slammed into K-01 Serf. 39573_ K-01 Serf destroyed. 39574_ Acquired 26 matter. 39574_ R-10 Processor collects Unknown Wheel. 39577_ K-01 Serf collects debris. 39583_ ALERT: LRC-V3 signature pinpointed, intercept squad dispatched. Tracker: "THREAT CONFIRMED. DEPLOY COMBAT PROGRAMMER." 39593_ Backup Propulsion VII temporarily disabled. Map ----- +----------------------------------------------------+ | ?????????????????????????????????????????????????# | | ?????????????????????????????????????????????????# | | ?????????????????????????????????????????????????# | | ?????????????????????????????????????????????????# | | ?????????????????????????????????????????????????# | | ?????????????????????????????????????????????????# | | ?????????????????????????????????????????????????# | | ?????????????????????????????????????????????????# | | ?????????????????????????????????????????????????# | | ????????????????????????????????????????########## | | ???????????????????????????????????????? | | ??????????????????????????????????????? | | ??????????????????????????????????????? | | ??????????????????????????????????????? | | ?????????????????????????????????????????######### | | ?????????????????????????????????????????????????? | | ?????????????????????????????????????????????????? | | ?????????????????????????????????????????????????? | | ?????????????????????????????????????????????????? | | ??????????????????###########????????????????????? | | ??????????????????#!! #????????????????????? | | ??????????????????#! #????????????????????? | | ??????????????????# [ #????????????????????? | | ??????????????????# #????????????????????? | | ??????????????????####+###########??###??????????? | | ?????????????????????# u @ sA s #?????###### | | ?????????????????????# ###########??# #?????# | | ?????????????????????# #????????????# #?????# | | ?????????????????????# #??????????### ###???# | | ?????????????????????# #??????????# #???# | | ?????????????????????# ############ ! ##### " | | ?????????????????????# ## / + "Y | | ?????????????????????# ## # ##### "" | | ??????????############ ##[ # #???# | | ?????? #[ "" "" ###+####??# | | ?????? + ""R"" # #??###+## | | ?????????####+########### """" # #????# ## | | ????????????????????????# # #????# ## | | ????????????????????????# # #????# ## | | ????????????????????????########### #????# ## | | ??????????????????????????????????# ! #????# ## | | ??????????????????????????????????########????# ## | | ??????????????????????????????????????????????# ## | | ??????????????????????????????????????????????# + | | ??????????????????????????????????????????????# ## | | ??????????????????????????????????????????????# ## | | ??????????????????????????????????????????????# ## | | ??????????????????????????????????????????????# ## | | ??????????????????????????????????????????????# ## | | ?????????????????????????????????????????????? ? | +----------------------------------------------------+ Best States ------------- Heat Dissipation 80 Coolant Potential 100 Energy Generation 53 Energy Capacity 1200 Matter Stores 351 Matter Capacity 550 Sight Range 24 Robot Scan Range 20 Terrain Scan Range 24 Terrain Scan Density 210 Jamming Range 22 Armor Coverage 1200 Resistance: TH 30 Resistance: EM 75 Utility Shielding 90 Weapon Shielding 90 Phase Shifting 20 Evasion (%) 66 Targeting Accuracy 12 Melee Accuracy 8 Core Analysis 6 Armor Integrity Analysis 40 Recoil Reduction 6 Energy Filtering 30 Particle Charging 25 Salvage Targeting 2 Offensive Hacking 74 Defensive Hacking 25 Authchip Count 2 Trap Extractor Capacity 6 Item Schematics ----------------- Hcp. Storage Unit | -9/Storage | Hacked Cld. Airjet | -7/Factory | Scanalyzed Scatter Rocket Array | -7/Factory | Hacked Combat Drone Bay | -7/Data Miner | Free Lgt. Regenerative Plating | -7/Data Miner | Free Biomechanical Wings | -7/Data Miner | Free Exp. Propulsion Shielding | -7/Data Miner | Free Nuclear Pulse Array | -7/Data Miner | Free Adv. Shield Generator | -7/Data Miner | Free Mass Driver | -7/Data Miner | Free Flexi-carbon Leg | -7/Data Miner | Free Field Propulsion Drive | -7/Data Miner | Free Point Defense Array | -7/Data Miner | Free Assault Drone Bay | -5/Zhirov | Free Exp. Heat Sink | -5/Zhirov | Free Exp. Optical Array | -5/Zhirov | Free Imp. Arc Thrower | -5/Zhirov | Free Lrn. Terrain Scanner | -4/Factory | Hacked Adv. Component Analysis Suite | -4/Factory | Hacked Quantum Reactor | -4/Factory | Hacked Cmb. Linear Gravjet | -4/Factory | Hacked Exp. Utility Shielding | -4/Factory | Hacked Exp. Weapon Shielding | -4/Factory | Hacked Exp. Terrain Scan Processor | -4/Factory | Hacked Adv. Cloaking Device | -3/Research | Hacked Exp. Transmission Jammer | -3/Research | Hacked Spectral Analyzer | -3/Research | Scanalyzed Mic. Antimatter Reactor | -3/Armory | Hacked Exp. Phase Shifter | -2/Testing | Hacked Adv. Quantum Shading Machine | -2/Testing | Hacked Enh. Biometal Leg | -2/Testing | Archive Exp. System Shield | -2/Testing | Archive Molecular Scythe | -2/Testing | Archive Lgt. Antimatter Cannon | -2/Testing | Archive Tactical Quantum Warhead | -2/Testing | Archive Cld. Gravmag System | -2/Testing | Archive Thunder Hammer | -2/Testing | Archive Hvy. Gatling Laser | -2/Testing | Archive Hvy. Wave Gun | -2/Testing | Archive Exp. Biometal Leg | -2/Section 7 | Archive Exp. Matter Compressor | -2/Section 7 | Archive Adv. Energy Well | -2/Section 7 | Archive Adv. Matter Compressor | -2/Section 7 | Archive Robot Schematics ------------------ M-22 Extractor | -7/Data Miner | Free Y-54 Guardian | -7/Data Miner | Free M-28 Smith | -7/Data Miner | Free S-27 Virus | -7/Data Miner | Free B-48 Gladiator | -7/Data Miner | Free A-15 Conveyor | -7/Data Miner | Free W-44 Eye | -2/Testing | Archive Fabricated ------------ Cld. Airjet | x1 | -7/Factory Y-54 Guardian | x2 | -7/Factory | Preloaded Scatter Rocket Array | x1 | -7/Factory Cld. Airjet | x1 | -7/Factory Combat Drone Bay | x1 | -6/Factory | Authchip Combat Drone Bay | x1 | -6/Factory Adv. Component Analysis Suite | x1 | -4/Factory | Preloaded Cmb. Linear Gravjet | x2 | -4/Factory | Authchip Cmb. Linear Gravjet | x2 | -4/Factory | Authchip Hcp. Storage Unit | x1 | -4/Factory Lrn. Terrain Scanner | x1 | -3/Research Exp. Transmission Jammer | x1 | -3/Research | Authchip Spectral Analyzer | x1 | -3/Armory Exp. Weapon Shielding | x1 | -2/Testing Alien Tech Used ----------------- Integrated Reactor Transdimensional Reconstructor Integrated Mediator Core Expander Integrity Redistributor LRC Storage LRC Boosters Achievements -------------- None Challenges ------------ None Game ------ Seed BombAntimatterFlakker Manual? 0 Play Time 08:59:49 Cumulative 621.4 hours Start 2022.12.21 @ 02:06:40 End 2022.12.24 @ 11:57:00 Sessions 9 Manual Loads 0 Difficulty Rogue Special Mode None Game No. 560 Rogue 560 Adventurer 0 Explorer 0 Win Type - Total 28 Types 14/2/7/2/0/0/1/1/1 Lore% 94 Gallery% 94 Achievement% 80 Wizard Run 0 Options --------- ASCII 0 Keyboard 0 Movement Arrows Keybinds 0 Fullscreen 1 Font 18/Smallcaps Map View 76x50 Tactical HUD 1 Map Filters NONE Filters NONE Steam 1 RUN: b5135854-f544-4fc8-a7f6-4e56999ff1be